Workbook

Sheet About
I3: ='Attributes (T1)'!C3 -> 0
B17: Country | D17: Papua New Guinea
B18: Protected Area
B19: Year

Sheet Dashboard Graphics
D19: =Dashboard!B113 -> METT Category | E19: =Dashboard!C113 -> % Weighted Score
D20: =Dashboard!B114 -> Planning | E20: =Dashboard!C114 -> 15.15151515
D21: =Dashboard!B115 -> Input | E21: =Dashboard!C115 -> 2.5
D22: =Dashboard!B116 -> Process | E22: =Dashboard!C116 -> 24.21934501
D23: =Dashboard!B117 -> Output | E23: =Dashboard!C117 -> 29.6875
D24: =Dashboard!B118 -> Outcome | E24: =Dashboard!C118 -> 25
D25: =Dashboard!B119 -> Governance | E25: =Dashboard!C119 -> 35.21126761
D26: =Dashboard!B120 -> TOTAL | E26: =Dashboard!C120 -> 21.58505155

Sheet Dashboard
A1: Category | B1: Issue | C1: Possible Score | D1: Score | E1: Possible Weighted Score | F1: Weighted Score | I1: Categories for reporting
A2: Planning | B2: 1. Legal status | C2: ='Scorecard (T8)'!G3 -> 3 | D2: ='Scorecard (T8)'!F3 -> 0 | E2: ='Scorecard (T8)'!I3 -> 3 | F2: ='Scorecard (T8)'!J3 -> 0 | I2: Design & establishment
A3: Planning | B3: 2. PA objectives | C3: ='Scorecard (T8)'!G4 -> 3 | D3: ='Scorecard (T8)'!F4 -> 0 | E3: ='Scorecard (T8)'!I4 -> 3 | F3: ='Scorecard (T8)'!J4 -> 0 | I3: Planning & objectives
A4: Process | B4: 3. PA regulations or customary laws/rules | C4: ='Scorecard (T8)'!G5 -> 3 | D4: ='Scorecard (T8)'!F5 -> 2 | E4: ='Scorecard (T8)'!I5 -> 3 | F4: ='Scorecard (T8)'!J5 -> 2 | I4: Legislation, control & enforcement
A5: Governance | B5: 3a. Clearly defined rules | C5: ='Scorecard (T8)'!G6 -> 3 | D5: ='Scorecard (T8)'!F6 -> 0 | E5: ='Scorecard (T8)'!I6 -> 1.5 | F5: ='Scorecard (T8)'!J6 -> 0 | I5: Legislation, control & enforcement
A6: Governance | B6: 3b. Clearly defined user/access rights | C6: ='Scorecard (T8)'!G7 -> 3 | D6: ='Scorecard (T8)'!F7 -> 2 | E6: ='Scorecard (T8)'!I7 -> 0.75 | F6: ='Scorecard (T8)'!J7 -> 0.5 | I6: Legislation, control & enforcement
A7: Governance | B7: 3c. Awareness of user/access rights | C7: ='Scorecard (T8)'!G8 -> 3 | D7: ='Scorecard (T8)'!F8 -> 1 | E7: ='Scorecard (T8)'!I8 -> 0.75 | F7: ='Scorecard (T8)'!J8 -> 0.25 | I7: Legislation, control & enforcement
A8: Planning | B8: 4. Planning for land use or coastal/marine activities that occur outside the PA | C8: ='Scorecard (T8)'!G9 -> 1 | D8: ='Scorecard (T8)'!F9 -> 0 | E8: ='Scorecard (T8)'!I9 -> 1 | F8: ='Scorecard (T8)'!J9 -> 0 | I8: Planning & objectives
A9: Planning | B9: 4a. Land & water planning for habitat conservation | C9: ='Scorecard (T8)'!G10 -> 3 | D9: ='Scorecard (T8)'!F10 -> 0 | E9: ='Scorecard (T8)'!I10 -> 1.2 | F9: ='Scorecard (T8)'!J10 -> 0 | I9: Planning & objectives
A10: Planning | B10: 4b. Land & water planning for connectivity | C10: ='Scorecard (T8)'!G11 -> 1 | D10: ='Scorecard (T8)'!F11 -> 0 | E10: ='Scorecard (T8)'!I11 -> 0.3 | F10: ='Scorecard (T8)'!J11 -> 0 | I10: Planning & objectives
A11: Planning | B11: 4c. Land and water planning for ecosystem services and species conservation | C11: ='Scorecard (T8)'!G12 -> 1 | D11: ='Scorecard (T8)'!F12 -> 0 | E11: ='Scorecard (T8)'!I12 -> 0.3 | F11: ='Scorecard (T8)'!J12 -> 0 | I11: Planning & objectives
A12: Planning | B12: 5. PA design | C12: ='Scorecard (T8)'!G13 -> 3 | D12: ='Scorecard (T8)'!F13 -> 3 | E12: ='Scorecard (T8)'!I13 -> 3 | F12: ='Scorecard (T8)'!J13 -> 3 | I12: Design & establishment
A13: Process | B13: 6a. On ground boundary marking of PA | C13: ='Scorecard (T8)'!G14 -> 3 | D13: ='Scorecard (T8)'!F14 -> 0 | E13: ='Scorecard (T8)'!I14 -> 0.9 | F13: ='Scorecard (T8)'!J14 -> 0 | I13: Design & establishment
A14: Process | B14: 6b. Map of PA boundaries | C14: ='Scorecard (T8)'!G15 -> 1 | D14: ='Scorecard (T8)'!F15 -> 0 | E14: ='Scorecard (T8)'!I15 -> 0.4 | F14: ='Scorecard (T8)'!J15 -> 0 | I14: Design & establishment
A15: Process | B15: 6c. GIS mapping of PA boundaries | C15: ='Scorecard (T8)'!G16 -> 1 | D15: ='Scorecard (T8)'!F16 -> 0 | E15: ='Scorecard (T8)'!I16 -> 0.3 | F15: ='Scorecard (T8)'!J16 -> 0 | I15: Design & establishment
A16: Process | B16: 6d. Boundary awareness of people who own the PA | C16: ='Scorecard (T8)'!G17 -> 3 | D16: ='Scorecard (T8)'!F17 -> 2 | E16: ='Scorecard (T8)'!I17 -> 1.5 | F16: ='Scorecard (T8)'!J17 -> 1 | I16: Design & establishment
A17: Process | B17: 6e. Boundary awareness among surrounding communities | C17: ='Scorecard (T8)'!G18 -> 3 | D17: ='Scorecard (T8)'!F18 -> 2 | E17: ='Scorecard (T8)'!I18 -> 1.5 | F17: ='Scorecard (T8)'!J18 -> 1 | I17: Design & establishment
A18: Process | B18: 6f. Respect of boundary by surrounding communities | C18: ='Scorecard (T8)'!G19 -> 3 | D18: ='Scorecard (T8)'!F19 -> 1 | E18: ='Scorecard (T8)'!I19 -> 1.2 | F18: ='Scorecard (T8)'!J19 -> 0.4 | I18: Design & establishment
A19: Process | B19: 6g. Respect of boundaries by Local Level Government | C19: ='Scorecard (T8)'!G20 -> 1 | D19: ='Scorecard (T8)'!F20 -> 0 | E19: ='Scorecard (T8)'!I20 -> 0.3 | F19: ='Scorecard (T8)'!J20 -> 0 | I19: Design & establishment
A20: Process | B20: 6h. Respect of boundaries at the District level | C20: ='Scorecard (T8)'!G21 -> 1 | D20: ='Scorecard (T8)'!F21 -> 0 | E20: ='Scorecard (T8)'!I21 -> 0.3 | F20: ='Scorecard (T8)'!J21 -> 0 | I20: Design & establishment
A21: Planning | B21: 7. Management planning | C21: ='Scorecard (T8)'!G22 -> 3 | D21: ='Scorecard (T8)'!F22 -> 0 | E21: ='Scorecard (T8)'!I22 -> 3 | F21: ='Scorecard (T8)'!J22 -> 0 | I21: Planning & objectives
A22: Planning | B22: 7a. Community/key people input into management plan | C22: ='Scorecard (T8)'!G23 -> 1 | D22: ='Scorecard (T8)'!F23 -> 0 | E22: ='Scorecard (T8)'!I23 -> 1 | F22: ='Scorecard (T8)'!J23 -> 0 | I22: Planning & objectives
A23: Planning | B23: 7b. Plan review of the management plan | C23: ='Scorecard (T8)'!G24 -> 1 | D23: ='Scorecard (T8)'!F24 -> 0 | E23: ='Scorecard (T8)'!I24 -> 1 | F23: ='Scorecard (T8)'!J24 -> 0 | I23: Planning & objectives
A24: Process | B24: 7c. Functioning protected area Management Committee | C24: ='Scorecard (T8)'!G25 -> 1 | D24: ='Scorecard (T8)'!F25 -> 0 | E24: ='Scorecard (T8)'!I25 -> 0.25 | F24: ='Scorecard (T8)'!J25 -> 0 | I24: Planning & objectives
A25: Governance | B25: 7d. Structures & processes of Management Committee & related PA decision making are clearly documented | C25: ='Scorecard (T8)'!G26 -> 1 | D25: ='Scorecard (T8)'!F26 -> 0 | E25: ='Scorecard (T8)'!I26 -> 0.25 | F25: ='Scorecard (T8)'!J26 -> 0 | I25: Planning & objectives
A26: Governance | B26: 7e. Decision-making structures and processes in relation to the management committee | C26: ='Scorecard (T8)'!G27 -> 3 | D26: ='Scorecard (T8)'!F27 -> 0 | E26: ='Scorecard (T8)'!I27 -> 0.75 | F26: ='Scorecard (T8)'!J27 -> 0 | I26: Planning & objectives
A27: Governance | B27: 7f. Access to Management Committee decisions | C27: ='Scorecard (T8)'!G28 -> 1 | D27: ='Scorecard (T8)'!F28 -> 0 | E27: ='Scorecard (T8)'!I28 -> 0.25 | F27: ='Scorecard (T8)'!J28 -> 0 | I27: Planning & objectives
A28: Planning | B28: 8. Regular work plan | C28: ='Scorecard (T8)'!G29 -> 3 | D28: ='Scorecard (T8)'!F29 -> 0 | E28: ='Scorecard (T8)'!I29 -> 3 | F28: ='Scorecard (T8)'!J29 -> 0 | I28: Planning & objectives
A29: Input | B29: 9. Resource inventory | C29: ='Scorecard (T8)'!G30 -> 3 | D29: ='Scorecard (T8)'!F30 -> 0 | E29: ='Scorecard (T8)'!I30 -> 3 | F29: ='Scorecard (T8)'!J30 -> 0 | I29: Resource management
A30: Input | B30: 10. Staff numbers | C30: ='Scorecard (T8)'!G31 -> 3 | D30: ='Scorecard (T8)'!F31 -> 0 | E30: ='Scorecard (T8)'!I31 -> 3 | F30: ='Scorecard (T8)'!J31 -> 0 | I30: Human resources
A31: Input | B31: 10a. Other unpaid people working on PA | C31: ='Scorecard (T8)'!G32 -> 3 | D31: ='Scorecard (T8)'!F32 -> 0 | E31: ='Scorecard (T8)'!I32 -> 3 | F31: ='Scorecard (T8)'!J32 -> 0 | I31: Human resources
A32: Input | B32: 11. Knowledge and skills | C32: ='Scorecard (T8)'!G33 -> 3 | D32: ='Scorecard (T8)'!F33 -> 0 | E32: ='Scorecard (T8)'!I33 -> 3 | F32: ='Scorecard (T8)'!J33 -> 0 | I32: Human resources
A33: Input | B33: 12. Current budget | C33: ='Scorecard (T8)'!G34 -> 3 | D33: ='Scorecard (T8)'!F34 -> 0 | E33: ='Scorecard (T8)'!I34 -> 3 | F33: ='Scorecard (T8)'!J34 -> 0 | I33: Budget, infrastructure & equipment
A34: Input | B34: 13. Security of budget | C34: ='Scorecard (T8)'!G35 -> 3 | D34: ='Scorecard (T8)'!F35 -> 0 | E34: ='Scorecard (T8)'!I35 -> 3 | F34: ='Scorecard (T8)'!J35 -> 0 | I34: Budget, infrastructure & equipment
A35: Process | B35: 14. Management of budget | C35: ='Scorecard (T8)'!G36 -> 3 | D35: ='Scorecard (T8)'!F36 -> 0 | E35: ='Scorecard (T8)'!I36 -> 3 | F35: ='Scorecard (T8)'!J36 -> 0 | I35: Budget, infrastructure & equipment
A36: Input | B36: 15a. Equipment and facilities | C36: ='Scorecard (T8)'!G37 -> 3 | D36: ='Scorecard (T8)'!F37 -> 0 | E36: ='Scorecard (T8)'!I37 -> 3 | F36: ='Scorecard (T8)'!J37 -> 0 | I36: Budget, infrastructure & equipment
A37: Process | B37: 15b. Maintenance of equipment and facilities | C37: ='Scorecard (T8)'!G38 -> 3 | D37: ='Scorecard (T8)'!F38 -> 0 | E37: ='Scorecard (T8)'!I38 -> 3 | F37: ='Scorecard (T8)'!J38 -> 0 | I37: Budget, infrastructure & equipment
A38: Process | B38: 16. Law enforcement | C38: ='Scorecard (T8)'!G39 -> 3 | D38: ='Scorecard (T8)'!F39 -> 0 | E38: ='Scorecard (T8)'!I39 -> 3 | F38: ='Scorecard (T8)'!J39 -> 0 | I38: Legislation, control & enforcement
A39: Governance | B39: 16a. Coordination of law enforcement | C39: ='Scorecard (T8)'!G40 -> 3 | D39: ='Scorecard (T8)'!F40 -> 0 | E39: ='Scorecard (T8)'!I40 -> 1.5 | F39: ='Scorecard (T8)'!J40 -> 0 | I39: Legislation, control & enforcement
A40: Governance | B40: 16b. Solving disputes or disagreements - documentation of processes | C40: ='Scorecard (T8)'!G41 -> 3 | D40: ='Scorecard (T8)'!F41 -> 3 | E40: ='Scorecard (T8)'!I41 -> 1.5 | F40: ='Scorecard (T8)'!J41 -> 1.5 | I40: Legislation, control & enforcement
A41: Governance | B41: 16c. Solving disputes or disagreements – suitability of the process | C41: ='Scorecard (T8)'!G42 -> 3 | D41: ='Scorecard (T8)'!F42 -> 1 | E41: ='Scorecard (T8)'!I42 -> 0.75 | F41: ='Scorecard (T8)'!J42 -> 0.25 | I41: Legislation, control & enforcement
A42: Governance | B42: 16d. Solving disputes or disagreements - success | C42: ='Scorecard (T8)'!G43 -> 3 | D42: ='Scorecard (T8)'!F43 -> 2 | E42: ='Scorecard (T8)'!I43 -> 0.75 | F42: ='Scorecard (T8)'!J43 -> 0.5 | I42: Legislation, control & enforcement
A43: Governance | B43: 16e. Prosecution of law breakers | C43: ='Scorecard (T8)'!G44 -> 3 | D43: ='Scorecard (T8)'!F44 -> 2 | E43: ='Scorecard (T8)'!I44 -> 1.5 | F43: ='Scorecard (T8)'!J44 -> 1 | I43: Legislation, control & enforcement
A44: Governance | B44: 16f. Prosecution of law breakers | C44: ='Scorecard (T8)'!G45 -> 1 | D44: ='Scorecard (T8)'!F45 -> 0 | E44: ='Scorecard (T8)'!I45 -> 0.5 | F44: ='Scorecard (T8)'!J45 -> 0 | I44: Legislation, control & enforcement
A45: Process | B45: 17. Protection systems/law enforcement - effectiveness | C45: ='Scorecard (T8)'!G46 -> 3 | D45: ='Scorecard (T8)'!F46 -> 0 | E45: ='Scorecard (T8)'!I46 -> 3 | F45: ='Scorecard (T8)'!J46 -> 0 | I45: Legislation, control & enforcement
A46: Governance | B46: 17a. Reporting incidents | C46: ='Scorecard (T8)'!G47 -> 3 | D46: ='Scorecard (T8)'!F47 -> 2 | E46: ='Scorecard (T8)'!I47 -> 1.5 | F46: ='Scorecard (T8)'!J47 -> 1 | I46: Legislation, control & enforcement
A47: Process | B47: 18. Staff safety | C47: ='Scorecard (T8)'!G48 -> 3 | D47: ='Scorecard (T8)'!F48 -> 0 | E47: ='Scorecard (T8)'!I48 -> 3 | F47: ='Scorecard (T8)'!J48 -> 0 | I47: Human resources
A48: Process | B48: 19. Research | C48: ='Scorecard (T8)'!G49 -> 3 | D48: ='Scorecard (T8)'!F49 -> 1 | E48: ='Scorecard (T8)'!I49 -> 3 | F48: ='Scorecard (T8)'!J49 -> 1 | I48: Resource management
A49: Process | B49: 20. Monitoring & evaluation (of management activities) | C49: ='Scorecard (T8)'!G50 -> 3 | D49: ='Scorecard (T8)'!F50 -> 0 | E49: ='Scorecard (T8)'!I50 -> 3 | F49: ='Scorecard (T8)'!J50 -> 0 | I49: Resource management
A50: Process | B50: 21. Resource management | C50: ='Scorecard (T8)'!G51 -> 3 | D50: ='Scorecard (T8)'!F51 -> 0 | E50: ='Scorecard (T8)'!I51 -> 3 | F50: ='Scorecard (T8)'!J51 -> 0 | I50: Resource management
A51: Process | B51: 22. Climate change | C51: ='Scorecard (T8)'!G52 -> 3 | D51: ='Scorecard (T8)'!F52 -> 0 | E51: ='Scorecard (T8)'!I52 -> 3 | F51: ='Scorecard (T8)'!J52 -> 0 | I51: Resource management
A52: Process | B52: 23a. Carbon capture | C52: ='Scorecard (T8)'!G53 -> 3 | D52: ='Scorecard (T8)'!F53 -> 1 | E52: ='Scorecard (T8)'!I53 -> 1.5 | F52: ='Scorecard (T8)'!J53 -> 0.5 | I52: Resource management
A53: Process | B53: 23b. Carbon storage | C53: ='Scorecard (T8)'!G54 -> 3 | D53: ='Scorecard (T8)'!F54 -> 1 | E53: ='Scorecard (T8)'!I54 -> 1.5 | F53: ='Scorecard (T8)'!J54 -> 0.5 | I53: Resource management
A54: Process | B54: 24. Ecosystem services – benefits are known | C54: ='Scorecard (T8)'!G55 -> 1 | D54: ='Scorecard (T8)'!F55 -> 1 | E54: ='Scorecard (T8)'!I55 -> 0.5 | F54: ='Scorecard (T8)'!J55 -> 0.5 | I54: Resource management
A55: Process | B55: 24a. Ecosystem services | C55: ='Scorecard (T8)'!G56 -> 3 | D55: ='Scorecard (T8)'!F56 -> 0 | E55: ='Scorecard (T8)'!I56 -> 1.5 | F55: ='Scorecard (T8)'!J56 -> 0 | I55: Resource management
A56: Process | B56: 25. Education & awareness | C56: ='Scorecard (T8)'!G57 -> 3 | D56: ='Scorecard (T8)'!F57 -> 2 | E56: ='Scorecard (T8)'!I57 -> 3 | F56: ='Scorecard (T8)'!J57 -> 2 | I56: Relationships, education & awareness
A57: Process | B57: 26. Government & commercial neighbour cooperation | C57: ='Scorecard (T8)'!G58 -> 3 | D57: ='Scorecard (T8)'!F58 -> 0 | E57: ='Scorecard (T8)'!I58 -> 3 | F57: ='Scorecard (T8)'!J58 -> 0 | I57: Relationships, education & awareness
A58: Process | B58: 27. Commercial tourism operators | C58: ='Scorecard (T8)'!G59 -> 3 | D58: ='Scorecard (T8)'!F59 -> 2 | E58: ='Scorecard (T8)'!I59 -> 3 | F58: ='Scorecard (T8)'!J59 -> 2 | I58: Tourism & recreation
A59: Process | B59: 28. Fees | C59: ='Scorecard (T8)'!G60 -> 3 | D59: ='Scorecard (T8)'!F60 -> 0 | E59: ='Scorecard (T8)'!I60 -> 3 | F59: ='Scorecard (T8)'!J60 -> 0 | I59: Tourism & recreation
A60: Output | B60: 29. Visitor facilities and services | C60: ='Scorecard (T8)'!G61 -> 3 | D60: ='Scorecard (T8)'!F61 -> 2 | E60: ='Scorecard (T8)'!I61 -> 3 | F60: ='Scorecard (T8)'!J61 -> 2 | I60: Tourism & recreation
A61: Process | B61: 30. Customary landowners | C61: ='Scorecard (T8)'!G62 -> 3 | D61: ='Scorecard (T8)'!F62 -> 3 | E61: ='Scorecard (T8)'!I62 -> 3 | F61: ='Scorecard (T8)'!J62 -> 3 | I61: Relationships, education & awareness
A62: Process | B62: 31. Local communities & others with access or user ‘rights’ | C62: ='Scorecard (T8)'!G63 -> 3 | D62: ='Scorecard (T8)'!F63 -> 1 | E62: ='Scorecard (T8)'!I63 -> 3 | F62: ='Scorecard (T8)'!J63 -> 1 | I62: Relationships, education & awareness
A63: Governance | B63: 31a. Proportion of women involved in decision making related to PA | C63: ='Scorecard (T8)'!G64 -> 3 | D63: ='Scorecard (T8)'!F64 -> 0 | E63: ='Scorecard (T8)'!I64 -> 0.75 | F63: ='Scorecard (T8)'!J64 -> 0 | I63: Human resources
A64: Governance | B64: 31b. Participation of women in the full range of PA decisions | C64: ='Scorecard (T8)'!G65 -> 1 | D64: ='Scorecard (T8)'!F65 -> 0 | E64: ='Scorecard (T8)'!I65 -> 0.25 | F64: ='Scorecard (T8)'!J65 -> 0 | I64: Human resources
A65: Governance | B65: 31c. Influence of women in decision making | C65: ='Scorecard (T8)'!G66 -> 3 | D65: ='Scorecard (T8)'!F66 -> 1 | E65: ='Scorecard (T8)'!I66 -> 0.75 | F65: ='Scorecard (T8)'!J66 -> 0.25 | I65: Human resources
A66: Governance | B66: 31d. Participation of young people in the full range of PA decisions | C66: ='Scorecard (T8)'!G67 -> 1 | D66: ='Scorecard (T8)'!F67 -> 1 | E66: ='Scorecard (T8)'!I67 -> 0.25 | F66: ='Scorecard (T8)'!J67 -> 0.25 | I66: Human resources
A67: Governance | B67: 31e. Influence of young people in decision making | C67: ='Scorecard (T8)'!G68 -> 3 | D67: ='Scorecard (T8)'!F68 -> 2 | E67: ='Scorecard (T8)'!I68 -> 0.75 | F67: ='Scorecard (T8)'!J68 -> 0.5 | I67: Human resources
A68: Governance | B68: 31f. Overall participation of people in full range of PA decisions | C68: ='Scorecard (T8)'!G69 -> 1 | D68: ='Scorecard (T8)'!F69 -> 1 | E68: ='Scorecard (T8)'!I69 -> 0.25 | F68: ='Scorecard (T8)'!J69 -> 0.25 | I68: Human resources
A69: Output | B69: 31g. Communication & trust between customary landowners & CEPA | C69: ='Scorecard (T8)'!G70 -> 1 | D69: ='Scorecard (T8)'!F70 -> 0 | E69: ='Scorecard (T8)'!I70 -> 0.5 | F69: ='Scorecard (T8)'!J70 -> 0 | I69: Relationships, education & awareness
A70: Output | B70: 31g. Communication & trust between customary landowners & Provincial govt | C70: ='Scorecard (T8)'!G71 -> 1 | D70: ='Scorecard (T8)'!F71 -> 0 | E70: ='Scorecard (T8)'!I71 -> 0.5 | F70: ='Scorecard (T8)'!J71 -> 0 | I70: Relationships, education & awareness
A71: Output | B71: 31g. Communication & trust between customary landowners & LLG | C71: ='Scorecard (T8)'!G72 -> 1 | D71: ='Scorecard (T8)'!F72 -> 1 | E71: ='Scorecard (T8)'!I72 -> 0.25 | F71: ='Scorecard (T8)'!J72 -> 0.25 | I71: Relationships, education & awareness
A72: Output | B72: 31g. Communication & trust between customary landowners & District reps | C72: ='Scorecard (T8)'!G73 -> 1 | D72: ='Scorecard (T8)'!F73 -> 1 | E72: ='Scorecard (T8)'!I73 -> 0.25 | F72: ='Scorecard (T8)'!J73 -> 0.25 | I72: Relationships, education & awareness
A73: Output | B73: 31g. Communication & trust between customary landowners & Ward reps | C73: ='Scorecard (T8)'!G74 -> 1 | D73: ='Scorecard (T8)'!F74 -> 1 | E73: ='Scorecard (T8)'!I74 -> 0.25 | F73: ='Scorecard (T8)'!J74 -> 0.25 | I73: Relationships, education & awareness
A74: Output | B74: 31g. Communication & trust between customary landowners & NGOs | C74: ='Scorecard (T8)'!G75 -> 1 | D74: ='Scorecard (T8)'!F75 -> 0 | E74: ='Scorecard (T8)'!I75 -> 0.25 | F74: ='Scorecard (T8)'!J75 -> 0 | I74: Relationships, education & awareness
A75: Output | B75: 31h. Community welfare | C75: ='Scorecard (T8)'!G76 -> 1 | D75: ='Scorecard (T8)'!F76 -> 0 | E75: ='Scorecard (T8)'!I76 -> 1 | F75: ='Scorecard (T8)'!J76 -> 0 | I75: Relationships, education & awareness
A76: Output | B76: 31i. Level of support | C76: ='Scorecard (T8)'!G77 -> 1 | D76: ='Scorecard (T8)'!F77 -> 1 | E76: ='Scorecard (T8)'!I77 -> 1 | F76: ='Scorecard (T8)'!J77 -> 1 | I76: Relationships, education & awareness
A77: Output | B77: 32. Livelihood benefits | C77: ='Scorecard (T8)'!G78 -> 3 | D77: ='Scorecard (T8)'!F78 -> 0 | E77: ='Scorecard (T8)'!I78 -> 3 | F77: ='Scorecard (T8)'!J78 -> 0 | I77: Economic benefit
A78: Governance | B78: 32a. Benefit-sharing arrangements - effectiveness | C78: ='Scorecard (T8)'!G79 -> 3 | D78: ='Scorecard (T8)'!F79 -> 0 | E78: ='Scorecard (T8)'!I79 -> 1.5 | F78: ='Scorecard (T8)'!J79 -> 0 | I78: Economic benefit
A79: Governance | B79: 32b. Distribution of livelihood benefits | C79: ='Scorecard (T8)'!G80 -> 3 | D79: ='Scorecard (T8)'!F80 -> 0 | E79: ='Scorecard (T8)'!I80 -> 0.75 | F79: ='Scorecard (T8)'!J80 -> 0 | I79: Economic benefit
A80: Governance | B80: 32c Change in livelihoods over the past five years | C80: ='Scorecard (T8)'!G81 -> 1 | D80: ='Scorecard (T8)'!F81 -> 0 | E80: ='Scorecard (T8)'!I81 -> 0.25 | F80: ='Scorecard (T8)'!J81 -> 0 | I80: Economic benefit
A81: Output | B81: 33. Threats | C81: ='Scorecard (T8)'!G82 -> 3 | D81: ='Scorecard (T8)'!F82 -> 1 | E81: ='Scorecard (T8)'!I82 -> 3 | F81: ='Scorecard (T8)'!J82 -> 1 | I81: Resource management
A82: Output | B82: 34. Connectivity (linkages to other natural systems) | C82: ='Scorecard (T8)'!G83 -> 3 | D82: ='Scorecard (T8)'!F83 -> 0 | E82: ='Scorecard (T8)'!I83 -> 3 | F82: ='Scorecard (T8)'!J83 -> 0 | I82: Resource management
A83: Outcome | B83: 35. Condition of natural values | C83: ='Scorecard (T8)'!G84 -> 3 | D83: ='Scorecard (T8)'!F84 -> 2 | E83: ='Scorecard (T8)'!I84 -> 3 | F83: ='Scorecard (T8)'!J84 -> 2 | I83: Condition of values
A84: Process | B84: 35a. Condition of natural values | C84: ='Scorecard (T8)'!G85 -> 1 | D84: ='Scorecard (T8)'!F85 -> 1 | E84: ='Scorecard (T8)'!I85 -> 1 | F84: ='Scorecard (T8)'!J85 -> 1 | I84: Condition of values
A85: Process | B85: 35b. Management programmes | C85: ='Scorecard (T8)'!G86 -> 1 | D85: ='Scorecard (T8)'!F86 -> 0 | E85: ='Scorecard (T8)'!I86 -> 1 | F85: ='Scorecard (T8)'!J86 -> 0 | I85: Resource management
A86: Process | B86: 35c. Actions implemented as routine part of management | C86: ='Scorecard (T8)'!G87 -> 1 | D86: ='Scorecard (T8)'!F87 -> 0 | E86: ='Scorecard (T8)'!I87 -> 1 | F86: ='Scorecard (T8)'!J87 -> 0 | I86: Resource management
A87: Outcome | B87: 36. Condition of cultural values | C87: ='Scorecard (T8)'!G88 -> 3 | D87: ='Scorecard (T8)'!F88 -> 1 | E87: ='Scorecard (T8)'!I88 -> 3 | F87: ='Scorecard (T8)'!J88 -> 1 | I87: Condition of values
A88: Process | B88: 36a. Condition of cultural values | C88: ='Scorecard (T8)'!G89 -> 1 | D88: ='Scorecard (T8)'!F89 -> 0 | E88: ='Scorecard (T8)'!I89 -> 1 | F88: ='Scorecard (T8)'!J89 -> 0 | I88: Condition of values
A89: Process | B89: 36b. Management programmes for cultural values | C89: ='Scorecard (T8)'!G90 -> 1 | D89: ='Scorecard (T8)'!F90 -> 0 | E89: ='Scorecard (T8)'!I90 -> 1 | F89: ='Scorecard (T8)'!J90 -> 0 | I89: Resource management
A90: Process | B90: 36c. Actions implemented as routine part of management to protect cultural values | C90: ='Scorecard (T8)'!G91 -> 1 | D90: ='Scorecard (T8)'!F91 -> 0 | E90: ='Scorecard (T8)'!I91 -> 1 | F90: ='Scorecard (T8)'!J91 -> 0 | I90: Resource management
A91: Outcome | B91: 37. Conservation status of key plant or animal species | C91: ='Scorecard (T8)'!G92 -> 3 | D91: ='Scorecard (T8)'!F92 -> 0 | E91: ='Scorecard (T8)'!I92 -> 3 | F91: ='Scorecard (T8)'!J92 -> 0 | I91: Condition of values
A92: Outcome | B92: 38. Conservation status of habitats | C92: ='Scorecard (T8)'!G93 -> 3 | D92: ='Scorecard (T8)'!F93 -> 0 | E92: ='Scorecard (T8)'!I93 -> 3 | F92: ='Scorecard (T8)'!J93 -> 0 | I92: Condition of values
A93: Input | B93: 39a. Level of support - CEPA | C93: ='Scorecard (T8)'!G94 -> 3 | D93: ='Scorecard (T8)'!F94 -> 1 | E93: ='Scorecard (T8)'!I94 -> 0.6 | F93: ='Scorecard (T8)'!J94 -> 0.2 | I93: Human resources
A94: Input | B94: 39b. Level of support – Provincial Government(s) | C94: ='Scorecard (T8)'!G95 -> 3 | D94: ='Scorecard (T8)'!F95 -> 0 | E94: ='Scorecard (T8)'!I95 -> 0.6 | F94: ='Scorecard (T8)'!J95 -> 0 | I94: Human resources
A95: Input | B95: 39c. Level of support – District(s) | C95: ='Scorecard (T8)'!G96 -> 3 | D95: ='Scorecard (T8)'!F96 -> 0 | E95: ='Scorecard (T8)'!I96 -> 0.6 | F95: ='Scorecard (T8)'!J96 -> 0 | I95: Human resources
A96: Input | B96: 39d. Level of support – LLG(s) | C96: ='Scorecard (T8)'!G97 -> 3 | D96: ='Scorecard (T8)'!F97 -> 0 | E96: ='Scorecard (T8)'!I97 -> 0.6 | F96: ='Scorecard (T8)'!J97 -> 0 | I96: Human resources
A97: Input | B97: 39e. Level of support – NGOs | C97: ='Scorecard (T8)'!G98 -> 3 | D97: ='Scorecard (T8)'!F98 -> 2 | E97: ='Scorecard (T8)'!I98 -> 0.6 | F97: ='Scorecard (T8)'!J98 -> 0.4 | I97: Human resources
A98: TOTAL | C98: =SUM(C2:C97) -> 224 | D98: =SUM(D2:D97) -> 54 | E98: =SUM(E2:E97) -> 155.2 | F98: =SUM(F2:F97) -> 33.5
B102: METT Category | C102: Score | D102: Possible Score | E102: % Non-weighted score | F102: Weighted Score | G102: Possible Weighted Score | H102: %
B103: Planning | C103: =SUM(D2:D3,D8:D12,D21:D23,D28) -> 3 | D103: =SUM(C2:C3,C8:C12,C21:C23,C28) -> 23 | E103: =C103/D103*100 -> 13.04347826 | F103: =SUM(F2:F3,F8:F12,F21:F23,F28) -> 3 | G103: =SUM(E2:E3,E8:E12,E21:E23,E28) -> 19.8 | H103: =F103/G103*100 -> 15.15151515
B104: Input | C104: =SUM(D29:D34,D36,D93:D97) -> 3 | D104: =SUM(C29:C34,C36,C93:C97) -> 36 | E104: 8.333333333 | F104: =SUM(F29:F34,F36,F93:F97) -> 0.6 | G104: =SUM(E29:E34,E36,E93:E97) -> 24 | H104: 2.5
B105: Process | C105: =SUM(D4,D13:D20,D24,D35,D37:D38,D45,D47:D59,D61:D62,D84:D86,D88:D90) -> 20 | D105: =SUM(C4,C13:C20,C24,C35,C37:C38,C45,C47:C59,C61:C62,C84:C86,C88:C90) -> 81 | E105: 24.69135802 | F105: =SUM(F4,F13:F20,F24,F37:F38,F35,F45,F47:F59,F61:F62,F84:F86,F88:F90) -> 15.9 | G105: =SUM(E4,E13:E20,E24,E35,E37:E38,E45,E47:E59,E61:E62,E84:E86,E88:E90) -> 65.65 | H105: 24.21934501
B106: Output | C106: =SUM(D60,D69:D77,D81:D82) -> 7 | D106: =SUM(C69:C77,C81:C82,C60) -> 20 | E106: 35 | F106: =SUM(F81:F82,F69:F77,F60) -> 4.75 | G106: =SUM(E60,E69:E77,E81:E82) -> 16 | H106: 29.6875
B107: Outcome | C107: =SUM(D83,D87,D91:D92) -> 3 | D107: =SUM(C83,C87,C91:C92) -> 12 | E107: 25 | F107: =SUM(F91:F92,F87,F83) -> 3 | G107: =SUM(E91:E92,E87,E83) -> 12 | H107: 25
B108: Governance | C108: =SUM(D5:D7,D25:D27,D39:D44,D46,D63:D68,D78:D80) -> 18 | D108: =SUM(C5:C7,C25:C27,C39:C44,C46,C63:C68,C78:C80) -> 52 | E108: 34.61538462 | F108: =SUM(F5:F7,F25:F27,F39:F44,F46,F63:F68,F78:F80) -> 6.25 | G108: =SUM(E78:E80,E63:E68,E46,E39:E44,E25:E27,E5:E7) -> 17.75 | H108: 35.21126761
B109: TOTAL | C109: =SUM(C103:C108) -> 54 | D109: =SUM(D103:D108) -> 224 | E109: 24.10714286 | F109: =SUM(F103:F108) -> 33.5 | G109: =SUM(G103:G108) -> 155.2 | H109: 21.58505155
B113: METT Category | C113: % Weighted Score
B114: Planning | C114: =H103 -> 15.15151515
B115: Input | C115: 2.5
B116: Process | C116: 24.21934501
B117: Output | C117: 29.6875
B118: Outcome | C118: 25
B119: Governance | C119: 35.21126761
B120: TOTAL | C120: 21.58505155
B123: Themes | C123: Weighted Score | D123: Possible W'ed Score | E123: % Weighted Score
B124: Design & establishment | C124: =SUM(F2,F12:F20) -> 5.4 | D124: =SUM(E2,E12:E20) -> 12.4 | E124: =C124/D124*100 -> 43.5483871
B125: Planning & objectives | C125: =SUM(F3,F8:F11,F21:F28) -> 0 | D125: =SUM(E3,E8:E11,E21:E28) -> 15.3 | E125: =C125/D125*100 -> 0
B126: Legislation, control & enforcement | C126: =SUM(F4:F7,F38:F46) -> 7 | D126: =SUM(E4:E7,E38:E46) -> 20 | E126: 35
B127: Resource management | C127: =SUM(F29,F48:F55,F81:F82,F85:F86,F89:F90) -> 3.5 | D127: =SUM(E29,E48:E55,E81:E82,E85:E86,E89:E90) -> 30 | E127: 11.66666667
B128: Human resources | C128: =SUM(F30:F32,F47,F63:F68,F93:F97) -> 1.85 | D128: =SUM(E93:E97,E63:E68,E47,E30:E32) -> 18 | E128: 10.27777778
B129: Budget, infrastructure & equipment | C129: =SUM(F33:F37) -> 0 | D129: =SUM(E33:E37) -> 15 | E129: 0
B130: Relationships, education & awareness | C130: =SUM(F56:F57,F61:F62,F69:F76) -> 7.75 | D130: =SUM(E56:E57,E61:E62,E69:E76) -> 16 | E130: 48.4375
B131: Tourism & recreation | C131: =SUM(F58:F60) -> 4 | D131: =SUM(E58:E60) -> 9 | E131: 44.44444444
B132: Economic benefit | C132: =SUM(F77:F80) -> 0 | D132: =SUM(E77:E80) -> 5.5 | E132: 0
B133: Condition of values | C133: =SUM(F83:F84,F87:F88,F91:F92) -> 4 | D133: =SUM(E83:E84,E87:E88,E91:E92) -> 14 | E133: 28.57142857
B134: TOTAL | C134: =SUM(C124:C133) -> 33.5 | D134: =SUM(D124:D133) -> 155.2 | E134: 21.58505155

Sheet Attributes (T1)
A1: Protected area attributes (Table 1)
B2: Question | C2: Kuglkane Ranges Protected Zone
A4: 1 | B4: Country | C4: Papua New Guinea
A5: 2 | B5: Location of protected area | C5: Kuglkane Ranges Protected Zone is located adjacent to Mt Wilhelm National Park in Gembogl District. The size of the possible extension area is not known but the area is made up of mountain ranges and the area covers the north-west side of the national park that shares a.......????? (Please fix this). Womatne village is the centre of the six council wards of Mitnande Local Level Government which is in the Gembogl District and is accessible by vehicle or on foot. It takes 40 to 50 minutes by vehicle from Kundiawa town to Womatne and another 10 minutes by vehicle to Ward 16 and Ward 17 central village which is Womkama. It will then take 30 minutes by foot or by vehicle it would take 10 minutes to reach Ward 14 and 15 which is Kurunugl.It will then take 15 minutes drive from Kurunugl to Ward 12 and 13 central village called Bongugo.
A6: 2a | B6: Province(s) | C6: Simbu
A7: 2b | B7: District/s | C7: Gembogl
A8: 2c | B8: Local level government(s) | C8: Mitnande
A9: 2d | B9: Wards (Name and/or number) | C9: 6 council wards - Kuglkane Wards 12-17
A10: 3 | B10: Name of the protected area | C10: Kuglkane Ranges Proteced Zone
A11: 3a | B11: CEPA Protected Area site code | C11: KUGL
A12: 4 | B12: World Database of Protected Areas site code | C12: Nil
A13: 5 | B13: Date when the protected area was formally established (dd/mm/yyyy) | C13: The site has not been formally established
A14: 5a | B14: Gazettal information or designation information (what does the date above refer to?) | C14: NA
A15: 6 | B15: What is the size of the protected area (in km2)? | C15: Not known
A16: 7 | B16: Protected area designation(s): What level or kind of protected area is it? | C16: The site does not have a protected area designation. It represents a possible extension of Mt Wihelm National Park
A17: 8 | B17: IUCN Protected area category | C17: Nil
A18: 9 | B18: IUCN Protected area category (other) | C18: Nil
A19: 10 | B19: International designations. Is the site listed under an international designation e.g. World Heritage site or Ramsar site, or WWF Global 2000 etc? (Y/N) | C19: Nil
A20: 10a | B20: World Heritage site (Y/N) | C20: Nil
A21: 10b | B21: Ramsar site (Y/N) | C21: Nil
A22: 10c | B22: UNESCO Man and Biosphere Reserves (Y/N) | C22: Nil
A23: 11 | B23: Other designations. Is the site listed under any other designation? (Y/N) | C23: Nil
A24: 12 | B24: Has the site been identified as a site of particular importance for biodiversity? (Y/N) | C24: Yes. It is a Key Biodiversity Area and an Important Bird and Biodiveristy Area
A25: 13 | B25: Who owns the protected area? | C25: Customary landowners
A26: 13a | B26: If the protected area is owned by customary landowners, please indicate all the relevant Clans. | C26: Kuglkane Tribe - Ward 12 to Ward 17 - 6 Council Wards including: Ward 12, Giglekane and Komkane; Ward 13 -Enduek; Ward 14 -Sambuglkane; Ward 15 - Inauglkane, Gendku and Wopana; Ward 16 -Awakane; and Ward 17 - Gandiglnem.
A27: 13b | B27: How many households live within the protected area? (e.g. 15) | C27: 1400
A28: 13c | B28: How many people live within the protected area? (e.g. 367) | C28: 10, 000
A29: 13d | B29: What proportion of the population living within the protected area comprises children (under 18 years old)? | C29: 0.1
A30: 13e | B30: Briefly outline what surrounds the protected area | C30: Settlements
A31: 14 | B31: Who manages the protected area? | C31: Customary landowners
A32: 15 | B32: Are there any special areas where restrictions or rules are in place that limit the activities that can take place in that area? | C32: Living or everlasting water (Kornumbun)- this is a sacred water that is believed to bring healing to sick people and is treated as a sacred lake and people are restricted or not allowed to go closer to this creek unnecessarily.
A33: 16 | B33: Briefly describe the cultural system, family, traditions, pasin tumbuna and the way in which customary landowners care for (lukautim) the land/sea in the protected area (i.e. if the protected area is owned by customary landowners). | C33: Patrilineal- decision making for use of resources is done by men
A34: 17 | B34: What rights do ‘other’ people have in relation to the protected area? (i.e. those who are not customary landowners) | C34: Equal/same rights are given by the community to the person regardless of gender and comes from the same village but lives outside of the area and still assists the community. (This is not clear to me - can you please expand). Also women married outside are given certain rights over access to the land (can you also please expand on these rights)
A35: 18 | B35: What is the process for deciding how land/sea in the protected area is accessed and used? | C35: Access or use of resources is controlled by traditional practises following the cultural system e.g. clan-based access and user rights
A36: 19 | B36: Total number of staff. Does the protected area have staff (paid workers)? (Y/N) | C36: No, since it is a proposed area there are no staff
A37: 19a | B37: Number of Permanent paid workers and their positions (e.g. 5 rangers, 1 manager) | C37: No, since it is a proposed area there are no staff
A38: 19b | B38: Number of Temporary paid workers and their positions (e.g. 4 caretakers, 5 rangers) | C38: No, since it is a proposed area there are no staff
A39: 19c | B39: How many people do work in the protected area on a voluntary basis (not paid)? | C39: No, since it is a proposed area there are no staff
A40: 19d | B40: What type of work do these voluntary workers/customary landowners undertake? | C40: No, since it is a proposed area there are no staff
A41: 20 | B41: What is the annual budget (Kina/ USD) for recurrent (operational) funds (excluding staff salary costs)? | C41: No budget received from the government
A42: 20a | B42: Year for which the budget is reported | C42: NA
A43: 20b | B43: Recurrent (operational) funds | C43: NA
A44: 20c | B44: Project or other supplementary or special funds (excluding staff salary costs) | C44: Nil
A45: 21 | B45: How many visitors came to the protected area last calendar year? | C45: 10
A46: 21a | B46: In what year were these visitor numbers reported? (yyyy) | C46: 2016 - 2018
A47: 21b | B47: Describe the main reasons for the tourist visits | C47: Walk the two foot tracks
A48: 22 | B48: Main value 1 | C48: ='Key Values (T3)'!B4 -> Biodiversity
B49: Main value 2 | C49: ='Key Values (T3)'!B5 -> Floating stone
B50: Main value 3 | C50: ='Key Values (T3)'!B6 -> Dragon stone (teme kombuglo)
B51: Main value 4 | C51: Heart lake
B52: Main value 5 | C52: War relics
B53: Main value 6 | C53: Living/Everlasting water (nigl tekepagua)
A54: 23 | B54: What are the benefits that arise from having the protected area? | C54: The forest will provide the following: asorb excess carbon, animal recovery and increase, clean water, tourism and cultural practises.
A55: 24 | B55: Management objective 1 | C55: Protect biodiveristy ; important plants,animals and wildlife (eg; butterfly and orchids)
B56: Management objective 2 | C56: Protect forest for cultural places and practises
B57: Management objective 3 | C57: Protect the significant habitats such as alphine grassland,lakes
B58: Management objective 4 | C58: Protect endangered animals example; singing dogs, dwarf cassowary,wild ducks and bird of paradise
B59: Management objective 5 | C59: Protect valuable strong trees for bulding houses - endayomba and daka (iron post) and special bush vines (waing) for building houses - livelihoods
B60: Management objective 6 | C60: Protect endemic species; example; flowering fern plant
B61: Management objective 7 | C61: For future generations for clean water and fresh air
B62: Management objective 8 | C62: To protect sacred sites for future generation
A63: 25 | B63: Are there any negative impacts or burdens on the wellbeing of customary landowners and others with user/access rights to the protected area that result from the protected area? If so, list them briefly here | C63: Stop cutting down of trees,Stop burning bush for hunting and gardening purposes, Provide refuge to other animals that will have negative imapct on the other animals and the communites, temporary restictions of use of trational materials, restriction/limiting the free use of the forest to all
A64: 26 | B64: Total number of people involved in completing or answering the questions in this assessment | C64: 6
A65: 26a | B65: Protected area manager (this includes the management committee members) | C65: NA - since it is a proposed area there is no management committee members
A66: 26b | B66: Protected area staff (paid workers) | C66: NA-there are no paid staff since it is a proposed area
A67: 26c | B67: Other Protected Area authority staff | C67: NA- there is no PA authority staff since it is a proposed area
A68: 26d | B68: Volunteer | C68: NA-no volunteers since it is a proposed area
A69: 26e | B69: NGO | C69: NA
A70: 26f | B70: Customary landowners, including the local community members and clan leaders | C70: Ms Wari Clement, Mr Murba Anton, Mr Ben Gende, Ms Carolyn Sundu, Ms Rachael Daka and Mr Peter Tora
A71: 26g | B71: Donors and/or sponsors | C71: No
A72: 26h | B72: External consultants | C72: No
A73: 26i | B73: Others | C73: No
A74: 27 | B74: Please note if the assessment was conducted in association with a particular project, on behalf of an organisation or donor. | C74: No
A75: 28a | B75: The Facilitator Name and position | C75: Alu Kaiye
A76: 28b | B76: Facilitator - Organisation | C76: Conservation and Environment Protection Authority
A77: 28c | B77: Facilitator - Address, Email, Phone | C77: P.O. Box 6601 Boroko NCD, email: alukaiye@gmail.com Phone:72320364
A78: 29 | B78: Recorder- Name and position | C78: Nancy Bobora
B79: Recorder - Organisation | C79: Conservation and Environment Protection Authority
B80: Recorder - Address, Email, Phone | C80: 6601, Boroko, National Capital District,nancy_bobora@yahoo.com.au, 301 4500,7561 9519
A81: 30 | B81: Date the assessment carried out (e.g. 29/01/2019) | C81: 28th - 30th September 2021

Sheet Likes (P1,1)
A1: Protected area description - "What I like about the protected area"
A2: PA Name | B2: Description of values | I2: I have cropped the image and lightened it (picture format, corrections) - makes it a bit easier to read. Can you also include a map of the proposed area if you have one (i.e. insert here)
A3: Kuglkane Ranges Proteced Zone | B3: We have two stones, one is called floating stone. From afar it looks like it is floating. One stone sits on the other'. 'We have Living water (Korongo). It makes you live longer and also original - magic water. Hunters pass by and respect the water by not making any noise'. 'Many lake/hidden waters are found in the area - Heart Lake is red in color. Thse are restricted lakes'.

Sheet Values Checklist (T2)
A1: Checklist of protected area values and benefits (Table 2)
A2: Q. No. | B2: (Summary Question) | C2: Question: Does the protected area: | D2: Answer (click on arrow) | E2: Score | F2: Total score possible | G2: Comment (to help explain the score)
A3: 1 | B3: Biodiversity | C3: Provide for biodiversity (i.e. have many different kinds of plants, animals and ecosystems)? | D3: A lot | E3: 2 | F3: 2
A4: 2 | B4: Special plants & animals | C4: Have species of plants and animals listed as vulnerable, endangered or critically endangered | D4: Some | E4: 1 | F4: 1 | G4: Tree kangaroo, Bird of Paradise, grass wallaby
A5: 3 | B5: Locally endemic plants or animal spp | C5: Have species of plants or animals found only in the protected area or nearby locations? | D5: Some | E5: 1 | F5: 1 | G5: Flowering fern plant, grass - Wayamaia - (White Kapuk)
A6: 4 | B6: Important ecosystems | C6: Contain important ecosystems (e.g. wetlands, grasslands, coral reefs etc)? | D6: A lot | E6: 2 | F6: 2 | G6: Highland grassland, lakes, boulders
A7: 5 | B7: Protect clean, fresh water | C7: Protect clean, fresh water? | D7: A lot | E7: 2 | F7: 2 | G7: Still intact
A8: 6 | B8: Religious or spiritual significance | C8: Have religious or spiritual significance (e.g. tambu places, sacred sites)? | D8: Some | E8: 1 | F8: 1 | G8: Use foot tracks for hunting and checking the war relics of World War 2
A9: 7 | B9: Scientific value | C9: Have scientific value? | D9: Some | E9: 1 | F9: 1 | G9: Wildlife Conservation Society
A10: 8 | B10: Source of employment for local communities | C10: Provide a source of employment for local communities? | D10: Some | E10: 1 | F10: 1 | G10: Guides and Rangers
A11: 9 | B11: Resources for local subsistence | C11: Provide resources for local subsistence (e.g. food, building materials, medicines etc)? | D11: A lot | E11: 2 | F11: 2 | G11: Timber, Watercress, Flowering fern plant, Kunai Grass, Pandanas (karuka), strong trees for house building, bush vines for making houses
A12: 10 | B12: Resources for sale & benefits aid community d'ment & well-being | C12: Provide resources for sale, with the benefits used to enable community development and enhance well-being? | D12: A lot | E12: 2 | F12: 2 | G12: Pandanus, mushroom, bush Kumu, bulb onion, garlic, potato, carrot
A13: 11 | B13: Foster & attract community d'ment projects to enhance community well-being | C13: Foster and attract community development projects to enhance community well-being? | D13: None | E13: 0 | F13: 0
A14: 12 | B14: Place where culture, language & traditions are practiced | C14: Provide a place where culture, language and traditional practices can be practiced? | D14: Some | E14: 1 | F14: 1 | G14: Exchange with each other with the following Potato, bulb onion, carrot, kumu, pandanas
A15: 13 | B15: People who pass on traditional knowledge to future generations | C15: Have people who pass on traditional knowledge to future generations? | D15: Some | E15: 1 | F15: 1 | G15: Traditional Bilas, Singsing/dances- traditional face painting
A16: 14 | B16: Plant species of high cultural or economic importance | C16: Have plant species of high cultural or economic importance? | D16: Some | E16: 1 | F16: 1 | G16: Bark of trees
A17: 15 | B17: Animal species of high cultural or economic importance | C17: Have animal species of high cultural or economic importance? | D17: Some | E17: 1 | F17: 1 | G17: Animals (WHICH), bird feathers for tradtional singing,
A18: 16 | B18: Historical sites | C18: Have historical sites? | D18: Some | E18: 1 | F18: 1 | G18: War relics from World War 2, Three foot tracks used for hunting
A19: 17 | B19: Nice scenery | C19: Have nice scenery (naispela hap long lukim)? | D19: A lot | E19: 2 | F19: 2 | G19: Grassland plains, glacial lakes,floating stone, sharp rocks and mountain ranges
A20: 18 | B20: Tourism activities now | C20: Have any tourism activities now? | D20: Some | E20: 1 | F20: 1 | G20: One foot track is currently used for trekking by tourists
A21: 19 | B21: Potential for tourism activities in the future | C21: Have the potential for tourism activities in the future? | D21: Some | E21: 1 | F21: 1 | G21: Distance is short and track is not too risky
A22: 20 | B22: Role in providing educational opportunities | C22: Have a role in providing educational opportunities? | D22: A lot | E22: 2 | F22: 2 | G22: Teach and conduct more awareness on glacials to the community
B23: TOTAL | C23: TOTAL | E23: =SUM(E3:E22) -> 26 | F23: =SUM(F3:F22) -> 26
C51: Insert this legend onto your graph | D51: Legend
D52: 0 | E52: None
D53: 1 | E53: Some
D54: 2 | E54: A lot

Sheet Key Values (T3)
A1: Protected area values (Table 3)
A2: No. | B2: Key values | C2: Brief description
B3: (e.g. only known breeding area for the PNG Heron) | C3: (e.g. large freshwater wetland areas immediately above high tide provide nesting sites and food for rearing chicks. Island location means no interference from feral animals or from vehicles).
A4: 1 | B4: Biodiversity | C4: Protect alphine grassland and plains, plants and wildlife
A5: 2 | B5: Floating stone | C5: One big flat stone sitting on-top of another stone and from afar the stones look like they are floating on water and hanging on-top
A6: 3 | B6: Dragon stone (teme kombuglo) | C6: Looks like the shape of a dragon and has two wings, two legs and has an open mouth and has a tail
A7: 4 | B7: Heart lake | C7: Red in color and heart shaped and there is a sharp boulder (tauia kaulang) beside the lake
A8: 5 | B8: War relics | C8: Chain and cement under the ground
A9: 6 | B9: Living or everlasting water (nigl tekepagua) | C9: Water that will make a person live longer or have a longer lifespan when one drinks the water. The everlasting water is surrounded by round boulders and there is an outlet with a natural looking tap for water to flow out

Sheet Benefits (T4)
A1: Protected area benefits (Table 4)
A2: No. | B2: Benefit/Positive | C2: Brief description
A4: 1 | B4: Absorb excess carbon | C4: Forests provide carbon sink
A5: 2 | B5: Animal recovery and increase | C5: Increase in population of important animals such as cassowary
A6: 3 | B6: Clean water | C6: provide clean water for local communities and Kundiawa township
A7: 4 | B7: Tourism activities | C7: forests and beautiful scenic mountain views attracts tourists
A8: 5 | B8: Cultural practises | C8: suppy materials such as bird feathers and plant leaves called tangets that are worn during tradtional singsing
C11: Please start all these answers with a capital letter - they need to read like a sentence. Please do this for all answers to questions.

Sheet Negatives (T5)
A1: Protected area negative impacts (Table 5)
A2: No. | B2: Negative impact | C2: Brief description
B3: (e.g. restrictions on fishing) | C3: (explain why this is a negative)
A4: 1 | B4: Stop cutting down of trees | C4: No building materials from trees to build houses, fence
A5: 2 | B5: Stop hunting | C5: Restriction placed on hunting will result in less supply of protein for consumption
A6: 3 | B6: Protecting habitats may promote increase in dangerous species eg; snakes | C6: Provide refuge to other animals that will have negative impact on the other animals and the communites
A7: 4 | B7: Tempoarty restictions of use of trational materials | C7: Eg; bird feathers
A8: 5 | B8: Restriction/limiting the free use of the forest to all | C8: Eg; free hunting access by all
A9: 5

Sheet Threats (T6)
A1: Detailed assessment of threats (Table 6) | L1: Meaning of ratings
A2: Threat category | B2: Threat | C2: Description | D2: Threat extent | E2: Threat extent score | F2: Threat severity | G2: Threat severity score | H2: Management response now | I2: Future management response | J2: Notes includings values affected
B3: Sub-categories of threat | C3: If the threat is present, insert details of the threat in the PA | D3: Select from pull down menu | E3: Insert score: VH=4; H=3; M=2; L=1 | F3: Select from pull down menu (leave blank if not applicable) | G3: Insert score: VH=4; H=3; M=2; L=1 | H3: List the management responses that are occurring NOW | I3: List what management needs to do to address the threat | J3: Write additional information here | L3: Extent rating | M3: Meaning: the threat is….
A4: 1: Housing and commercial development within a protected area Threats from human settlements or other non-agricultural land uses | B4: 1.1 Housing and settlement | C4: If the threat is present, insert details of the threat to the PA in this columnm. So every low, medium high etc MUST have a comment in this column - to help the reader understand what the threat is. | D4: Low | E4: 1 | F4: Low | G4: 1 | H4: Nothing at the moment | I4: If a threat is present please write something here to indicate what is planned for the future. If people do not think anything needs to be done, just say so. | J4: It is managable by the communities as they cut trees near their homes to build houses | L4: Very high (4) | M4: widespread and affects the value throughout the PA
B5: 1.2 Commercial and industrial areas | D5: select | E5: =_xlfn.IFS(D5="select"," ",D5="very high",4, D5="high",3,D5="medium",2,D5="low",1, D5="none",0) ->  | F5: select | G5: =_xlfn.IFS(F5="select"," ",F5="very high",4, F5="high",3,F5="medium",2,F5="low",1) ->  | J5: NA | L5: High (3) | M5: widespread and affects the value at many locations
B6: 1.3 Tourism and recreation infrastructure (e.g. structures) | D6: Low | E6: 1 | F6: Low | G6: 1 | H6: Nil | J6: NA | L6: Medium (2) | M6: localised and affects the value at some locations
B7: 1.4 Population increase in the protected area community | C7: Important to know population numbers, growth rate - is there a census? So please fill all these rows in. | D7: Very high | E7: 4 | F7: High | G7: 3 | H7: Nil | I7: Carry out more education awareness on high population growth | L7: Low (1) | M7: localised and found in only limited locations and the impact on our values is limited
A8: 2: Agriculture and aquaculture within a protected area Threats to the proteted area from all kinds of farming and grazing including plantations, forestry and fishing | B8: 2.1 Customary landowner and community gardens and small crops | D8: Medium | E8: 2 | F8: Low | G8: 1 | H8: Nil | L8: None (0) | M8: threat is not present
B9: 2.2 Drug cultivation | D9: Low | E9: 1 | F9: Low | G9: 1 | H9: Community monitors | L9: Severity rating | M9: Meaning: the threat is ….
B10: 2.3 Wood and pulp plantations | D10: select | E10: =_xlfn.IFS(D10="select"," ",D10="very high",4, D10="high",3,D10="medium",2,D10="low",1, D10="none",0) ->  | F10: select | G10: =_xlfn.IFS(F10="select"," ",F10="very high",4, F10="high",3,F10="medium",2,F10="low",1) ->  | J10: NA | L10: Very high (4) | M10: likely to destroy some protected area value(s) (e.g. it might destroy a type of animal or plant, or your traditional gardens)
B11: 2.4 Livestock farming and grazing | D11: select | E11: =_xlfn.IFS(D11="select"," ",D11="very high",4, D11="high",3,D11="medium",2,D11="low",1, D11="none",0) ->  | F11: select | G11: =_xlfn.IFS(F11="select"," ",F11="very high",4, F11="high",3,F11="medium",2,F11="low",1) ->  | J11: NA | L11: High (3) | M11: likely to seriously degrade the protected area values where the threat occurs
B12: 2.5 Marine and freshwater aquaculture | D12: select | E12: =_xlfn.IFS(D12="select"," ",D12="very high",4, D12="high",3,D12="medium",2,D12="low",1, D12="none",0) ->  | F12: select | J12: NA | L12: Medium (2) | M12: likely to moderately degrade the protected area values where the threat occurs – they are damaging values but not so badly
B13: 2.6 Commercial plantations | D13: select | E13: =_xlfn.IFS(D13="select"," ",D13="very high",4, D13="high",3,D13="medium",2,D13="low",1, D13="none",0) ->  | F13: select | G13: =_xlfn.IFS(F13="select"," ",F13="very high",4, F13="high",3,F13="medium",2,F13="low",1) ->  | J13: NA | L13: Low (1) | M13: only slightly impacting on protected areas values
A14: 3. Energy production and mining within a protected area Threats from production of non-biological resources | B14: 3.1 Oil and gas drilling and pipeline construction | D14: select | E14: =_xlfn.IFS(D14="select"," ",D14="very high",4, D14="high",3,D14="medium",2,D14="low",1, D14="none",0) ->  | F14: select | G14: =_xlfn.IFS(F14="select"," ",F14="very high",4, F14="high",3,F14="medium",2,F14="low",1) ->  | J14: NA
B15: 3.2 Mining and quarrying | D15: select | E15: =_xlfn.IFS(D15="select"," ",D15="very high",4, D15="high",3,D15="medium",2,D15="low",1, D15="none",0) ->  | F15: select | G15: =_xlfn.IFS(F15="select"," ",F15="very high",4, F15="high",3,F15="medium",2,F15="low",1) ->  | J15: NA
B16: 3.3 Energy generation | D16: select | E16: =_xlfn.IFS(D16="select"," ",D16="very high",4, D16="high",3,D16="medium",2,D16="low",1, D16="none",0) ->  | F16: select | G16: =_xlfn.IFS(F16="select"," ",F16="very high",4, F16="high",3,F16="medium",2,F16="low",1) ->  | J16: NA
A17: 4. Transportation and service corridors Threats from long narrow transport corridors and the vehicles (and people) that use some of them | B17: 4.1 Roads, railroads and paths/tracks | D17: Low | E17: 1 | F17: Low | G17: 1 | H17: Nil
B18: 4.2 Utility and service lines | D18: select | E18: =_xlfn.IFS(D18="select"," ",D18="very high",4, D18="high",3,D18="medium",2,D18="low",1, D18="none",0) ->  | F18: select | G18: =_xlfn.IFS(F18="select"," ",F18="very high",4, F18="high",3,F18="medium",2,F18="low",1) ->  | J18: NA
B19: 4.3 Shipping lanes and canals | D19: select | E19: =_xlfn.IFS(D19="select"," ",D19="very high",4, D19="high",3,D19="medium",2,D19="low",1, D19="none",0) ->  | F19: select | G19: =_xlfn.IFS(F19="select"," ",F19="very high",4, F19="high",3,F19="medium",2,F19="low",1) ->  | J19: NA
B20: 4.4 Flight paths | D20: select | E20: =_xlfn.IFS(D20="select"," ",D20="very high",4, D20="high",3,D20="medium",2,D20="low",1, D20="none",0) ->  | F20: select | G20: =_xlfn.IFS(F20="select"," ",F20="very high",4, F20="high",3,F20="medium",2,F20="low",1) ->  | J20: NA
A21: 5. Biological resource use and harm within a protected area Threats from the use of "wild" biological resources including both deliberate and unintentional harvesting effects (Note this includes hunting and killing of animals). | B21: 5.1 Hunting, killing and collecting terrestrial (native) animals (including for ceremonial purposes and commercial use) | D21: High | E21: 3 | F21: High | G21: 3 | H21: Nil | J21: Not a protected area yet
B22: 5.2 Gathering terrestrial (native) plants or plant products (non-timber) (including for ceremonial purposes and commercial use) | D22: Medium | E22: 2 | F22: Medium | G22: 2 | H22: Nil | J22: Not a protected area yet
B23: 5.3a Logging and wood harvesting for local/customary use | D23: Medium | E23: 2 | F23: High | G23: 3 | H23: Nil | J23: Not a protected area yet
B24: 5.3b Logging and wood harvesting – commercial logging | D24: select | E24: =_xlfn.IFS(D24="select"," ",D24="very high",4, D24="high",3,D24="medium",2,D24="low",1, D24="none",0) ->  | F24: select | G24: =_xlfn.IFS(F24="select"," ",F24="very high",4, F24="high",3,F24="medium",2,F24="low",1) ->  | J24: NA
B25: 5.4a Fishing, killing and harvesting (native) aquatic resources for local/customary use | D25: High | E25: 3 | F25: Very high | G25: 4
B26: 5.4b Fishing, killing and harvesting (native) aquatic resources for commercial use | D26: select | E26: =_xlfn.IFS(D26="select"," ",D26="very high",4, D26="high",3,D26="medium",2,D26="low",1, D26="none",0) ->  | F26: select | G26: =_xlfn.IFS(F26="select"," ",F26="very high",4, F26="high",3,F26="medium",2,F26="low",1) ->  | J26: NA
A27: 6. Human intrusions and disturbance within a protected area Threats from human activities that alter, destroy or disturb habitats and species associated with non-consumptive uses of biological resources | B27: 6.1 Recreational and tourism activities | D27: Medium | E27: 2 | F27: Low | G27: 1
B28: 6.2 War, civil unrest and military exercises | D28: select | E28: =_xlfn.IFS(D28="select"," ",D28="very high",4, D28="high",3,D28="medium",2,D28="low",1, D28="none",0) ->  | F28: select | G28: =_xlfn.IFS(F28="select"," ",F28="very high",4, F28="high",3,F28="medium",2,F28="low",1) ->  | J28: NA
B29: 6.3 Research, education and other wor-related activities in the protected area | D29: Low | E29: 1 | F29: Low | G29: 1 | H29: Only Wildlife Conservation Society conducted research on wildlife once only
B30: 6.4 Activities of the protected area managers (e.g. construction or vehicle use) | D30: select | E30: =_xlfn.IFS(D30="select"," ",D30="very high",4, D30="high",3,D30="medium",2,D30="low",1, D30="none",0) ->  | F30: select | G30: =_xlfn.IFS(F30="select"," ",F30="very high",4, F30="high",3,F30="medium",2,F30="low",1) ->  | J30: NA
B31: 6.5 Deliberate destructive activities or threats to protected area staff and visitors | D31: High | E31: 3 | F31: Very high | G31: 4 | H31: Nil | J31: Fire used only during dry season
B32: 6.6 Impacts from cultural and religious tourism | D32: Low | E32: 1 | F32: Low | G32: 1 | H32: Nil
A33: 7. Changes to natural systems Threats from other actions that convert or degrade habitat or change the way the ecosystem functions. | B33: 7.1 Habitat clearing | D33: High | E33: 3 | F33: High | G33: 3 | H33: Nil | J33: Landslides during the rain season destroys homes,gardens,animals and the environment
B34: 7.2 Fire and fire suppression | D34: Medium | E34: 2 | F34: High | G34: 3 | H34: Men in the village some time ago during the dry season had to go out to the head of the grassland plains for weeks to put out the fires leaving the women and children behind | I34: Carry out more education awareness on bush fires and effects. Stop people from throwing broken glass in the grassland plains because fires start naturally from this. | J34: Occurs naturally during dry season only
B35: 7.3 Dams, water flow modification and water management/use | D35: select | E35: =_xlfn.IFS(D35="select"," ",D35="very high",4, D35="high",3,D35="medium",2,D35="low",1, D35="none",0) ->  | F35: select | G35: =_xlfn.IFS(F35="select"," ",F35="very high",4, F35="high",3,F35="medium",2,F35="low",1) ->  | J35: NA
B36: 7.4 Increased fragmentation within the protected area | D36: High | E36: 3 | F36: Medium | G36: 2 | H36: Nil | J36: Only foot tracks within the area
B37: 7.5 The protected area is separated from other natural habitat | D37: Medium | E37: 2 | F37: Medium | G37: 2 | H37: Nil | J37: Old gardens are left after usage and grows back into the natural habitat
B38: 7.6 Other ‘edge effects’ (impacts) happening on the boundary of the protected area | D38: Medium | E38: 2 | F38: Medium | G38: 2 | H38: Nil | J38: Old gardens are left after usage and grows back into the natural habitat
B39: 7.7 Loss of keystone species | D39: High | E39: 3 | F39: High | G39: 3 | H39: Nil | J39: Cassowary dispersal of seeds
A40: 8. Invasive and other problematic species and genes. Threats from terrestrial and aquatic non-native and native plants, animals, pathogens/microbes or genetic materials that have, or are predicted to have, harmful effects on biodiversity following introduction, spread and/or increase | B40: 8.1 Introduced (pest) plants | D40: Very high | E40: 4 | F40: Very high | G40: 4 | H40: Nil
B41: 8.2 Introduced (pest) animals | D41: Very high | E41: 4 | F41: Very high | G41: 4 | H41: Nil | J41: Poison trout or talapia
B42: 8.3 Diseases such as fungus or viruses that make native plants or animals sick | D42: Low | E42: 1 | F42: Low | G42: 1 | H42: Nil | J42: Coffee and Onion disease
B43: 8.4 Introduced genetic material | D43: select | E43: =_xlfn.IFS(D43="select"," ",D43="very high",4, D43="high",3,D43="medium",2,D43="low",1, D43="none",0) ->  | F43: select | G43: =_xlfn.IFS(F43="select"," ",F43="very high",4, F43="high",3,F43="medium",2,F43="low",1) ->  | J43: NA
A44: 9. Pollution entering or generated Threats from pollution and/or excess materials or energy from specific sites or more general sources | B44: 9.1 Household sewage and urban/village waste water | D44: Low | E44: 1 | F44: select | G44: =_xlfn.IFS(F44="select"," ",F44="very high",4, F44="high",3,F44="medium",2,F44="low",1) ->  | H44: Nil
B45: 9.2 Sewage and waste water from protected area facilities | D45: select | E45: =_xlfn.IFS(D45="select"," ",D45="very high",4, D45="high",3,D45="medium",2,D45="low",1, D45="none",0) ->  | F45: select | G45: =_xlfn.IFS(F45="select"," ",F45="very high",4, F45="high",3,F45="medium",2,F45="low",1) ->  | J45: NA
B46: 9.3 Industrial, mining and military effluents and discharges | D46: select | E46: =_xlfn.IFS(D46="select"," ",D46="very high",4, D46="high",3,D46="medium",2,D46="low",1, D46="none",0) ->  | F46: select | G46: =_xlfn.IFS(F46="select"," ",F46="very high",4, F46="high",3,F46="medium",2,F46="low",1) ->  | J46: NA
B47: 9.4 Agricultural and forestry effluents | D47: Low | E47: 1 | F47: Low | G47: 1 | H47: Nil
B48: 9.5 Garbage and solid waste | D48: select | E48: =_xlfn.IFS(D48="select"," ",D48="very high",4, D48="high",3,D48="medium",2,D48="low",1, D48="none",0) ->  | F48: select | G48: =_xlfn.IFS(F48="select"," ",F48="very high",4, F48="high",3,F48="medium",2,F48="low",1) ->  | J48: NA
B49: 9.6 Air-borne pollutants | D49: Low | E49: 1 | F49: Low | G49: 1 | J49: Smoke from bush fires (natural and man-made)
B50: 9.7 Excess energy | D50: select | E50: =_xlfn.IFS(D50="select"," ",D50="very high",4, D50="high",3,D50="medium",2,D50="low",1, D50="none",0) ->  | F50: select | G50: =_xlfn.IFS(F50="select"," ",F50="very high",4, F50="high",3,F50="medium",2,F50="low",1) ->  | J50: NA
B51: 9.8 Sound pollution (especially from roads) | D51: Low | E51: 1 | F51: Low | G51: 1
A52: 10. Geological events Geological events may be part of natural disturbance regimes in many ecosystems. However, they can be a threat if a species or habitat is damaged and has lost its resilience and is vulnerable to disturbance. Management capacity to respond to some of these changes may be limited. | B52: 10.1 Volcanoes (ash and lava) | D52: select | E52: =_xlfn.IFS(D52="select"," ",D52="very high",4, D52="high",3,D52="medium",2,D52="low",1, D52="none",0) ->  | F52: select | G52: =_xlfn.IFS(F52="select"," ",F52="very high",4, F52="high",3,F52="medium",2,F52="low",1) ->  | J52: NA
B53: 10.2 Earthquakes/Tsunamis | D53: Low | E53: 1 | F53: Low | G53: 1
B54: 10.3 Avalanches/ Landslides | D54: High | E54: 3 | F54: High | G54: 3 | J54: Destroy homes, gradens,environment,kills animals and people
B55: 10.4 Erosion and deposition | D55: High | E55: 3 | F55: High | G55: 3 | J55: Heavy rainfall causes erosion from the mountain that travels downhill and spoils the river and the water with all the debris and soil
A56: 11. Climate change and severe weather Threats from long-term climatic changes which may be linked to global warming and other severe climatic/ weather events outside of the natural range of variation | B56: 11.1 Habitat shifting and alteration | D56: Low | E56: 1 | F56: Low | G56: 1 | J56: Gardens are made near their homes and not in the forest
B57: 11.2 Droughts | D57: High | E57: 3 | F57: Very high | G57: 4 | J57: Had drought for the past months and it affected their food crops,trees and animals
B58: 11.3 Temperature extremes | D58: High | E58: 3 | F58: High | G58: 3 | J58: Trees, plants and animals affected
B59: 11.4 Storms and flooding | D59: Medium | E59: 2 | F59: Medium | G59: 2
B60: 11.5 Ocean acidification | D60: select | E60: =_xlfn.IFS(D60="select"," ",D60="very high",4, D60="high",3,D60="medium",2,D60="low",1, D60="none",0) ->  | F60: select | G60: =_xlfn.IFS(F60="select"," ",F60="very high",4, F60="high",3,F60="medium",2,F60="low",1) ->  | J60: NA
B61: 11.6 Sea level rise | D61: select | E61: =_xlfn.IFS(D61="select"," ",D61="very high",4, D61="high",3,D61="medium",2,D61="low",1, D61="none",0) ->  | F61: select | G61: =_xlfn.IFS(F61="select"," ",F61="very high",4, F61="high",3,F61="medium",2,F61="low",1) ->  | J61: NA
B62: 11.7 Coral bleaching | D62: select | E62: =_xlfn.IFS(D62="select"," ",D62="very high",4, D62="high",3,D62="medium",2,D62="low",1, D62="none",0) ->  | F62: select | G62: =_xlfn.IFS(F62="select"," ",F62="very high",4, F62="high",3,F62="medium",2,F62="low",1) ->  | J62: NA
B63: 11.8 Saltwater coming into the protected area | D63: select | E63: =_xlfn.IFS(D63="select"," ",D63="very high",4, D63="high",3,D63="medium",2,D63="low",1, D63="none",0) ->  | F63: select | G63: =_xlfn.IFS(F63="select"," ",F63="very high",4, F63="high",3,F63="medium",2,F63="low",1) ->  | J63: NA
B64: 11.9 Other climate changes | D64: High | E64: 3 | F64: Low | G64: 1 | J64: Changes in season of Pandanas,Coffee and Mareta
A65: 12. Cultural and social threats | B65: 12.1 Loss of cultural links, traditional knowledge, language, dress, sing sings, respect and/or management practices | D65: Medium | E65: 3 | F65: Low | G65: 1
B66: 12.2 Natural deterioration of important cultural site values | D66: Low | E66: 1 | F66: Low | G66: 1
B67: 12.3 Destruction of cultural heritage buildings, gardens, sites etc | D67: Low | E67: 1 | F67: Low | G67: 1
B68: 12.4 Loss of land tenure | D68: Low | E68: 1 | F68: Low | G68: 1
B69: 12.5 Other cultural/social threats | D69: Medium | E69: 2 | F69: Low | G69: 1
A70: 13. Governance problems | B70: 13.1 Conflicting policies across sectors | D70: Low | E70: 1 | F70: Low | G70: 1 | J70: For now there are no other policies except conservation
B71: 13.2 Confusion about government roles and responsibilities | D71: Very high | E71: 4 | F71: High | G71: 3 | J71: People in the communities do not fully understand the roles and responsibilities of the three arms of the government
B72: 13.3 Lack of coordination across all levels of government | D72: High | E72: 3 | F72: High | G72: 3 | J72: Support and coordination by the three levels of the government is not helpful and not effective

Sheet Worst threat (T7)
A1: Worst threats (Table 7)
A2: Rank order | B2: Threat | C2: Threat number | D2: Additional comments
B3: (most significant first) | C3: (copy from Table 6 e.g. 11.1)
A4: 1 | B4: Lack of coordination across all levels of government. | C4: 13.1 | D4: A project is brought to the area by one arm of the government and does not complete its phase, then leaves and then the arm of government brings in another project to work at the same area.
A5: 2 | B5: Deliberate destructive activities or threats to the land by individual landowners in a protectd area | C5: 6.5 | D5: Landowners destroy their own land and forest as they think that they are the owners and no one will have a say.
A6: 3 | B6: Fire and fire management suppression (including deliberate fires) | C6: 7.2 | D6: Some time ago there was a bush fire and the men had to go up to the bush for a week to put out the fires
A7: 4 | B7: Habitat Clearing | C7: 7.1 | D7: Landslides during the rain season destroys homes, gardens, animals and the environment
A8: 5 | B8: Landslides/Avalanches | C8: 10.3 | D8: Destroy homes, gradens,environment,kills animals and people

Sheet Scorecard (T8)
B1: METT Scorecard (Table 8)
A2: Category | B2: Issue | C2: Question | D2: Select response (from pull down menu) | E2: Response | F2: Score | G2: Possible score | H2: Weighting | I2: Possible Weighted Score | J2: Weighted score | K2: Evidence & Justification (Reasons for choosing the response) | L2: Actions to improve management | M2: Information Source (Select from pull down menu) | N2: Comments on information source (add additional sources here)
A3: Planning | B3: 1. Legal status | C3: Does the protected area have legal status or is it established under “other effective means”? (e.g. in the case of private reserves is it covered by a covenant or similar)? | D3: A. The protected area is not gazetted/approved by national or provincial government or has not been established through ‘other effective means’ | E3: =VLOOKUP(D3,Responses!B2:D7,2,FALSE) -> A | F3: =VLOOKUP(E3,Responses!C2:E7,2,FALSE) -> 0 | G3: 3 | H3: 1 | I3: =G3*H3 -> 3 | J3: =IF(F3="not relevant"," ",F3*H3) -> 0 | K3: Area is outside of Mt Wilhelm National Park. The community are now deciding to protect the area. | L3: So what needs to happen next? | N3: Please use the pull down menu in column M to indicate the source of information - I guess this would be customary knowledge in this case. Please fix for all empty cells.
A4: Planning | B4: 2. Protected area objectives | C4: Is protected area management based on agreed objectives? | D4: A. No firm objectives have been agreed for the protected area to guide management | E4: =VLOOKUP(D4,Responses!B8:D13,2,FALSE) -> A | F4: =VLOOKUP(E4,Responses!C8:E13,2,FALSE) -> 0 | G4: =IF(F4="not relevant",0,3) -> 3 | H4: 1 | I4: =G4*H4 -> 3 | J4: =IF(F4="not relevant"," ",F4*H4) -> 0 | K4: It is not a gazetted protected area yet. | L4: So what needs to happen next?
A5: Process | B5: 3. Protected area regulations or customary laws/rules | C5: Are laws, rules or agreements in place to manage land or marine use and activities in the protected area in accordance with the management objectives? (includes hunting, logging, mining, fishing) | D5: C. Regulations or customary laws for managing land use and activities in the protected area exist, but there are some weaknesses or gaps | E5: =VLOOKUP(D5,Responses!B14:D19,2,FALSE) -> C | F5: =VLOOKUP(E5,Responses!C14:E19,2,FALSE) -> 2 | G5: 3 | H5: 1 | I5: 3 | J5: 2 | K5: Customary laws-elderly people advised the people to not cross borders as this will create disputes between other clans - tumbunas says when you go to the forest do not cut tress unnecessarily but do selective cutting of few trees only | L5: no regulation and monitoring and enforcement of customary laws DO YOU MEAN - there is a need for regulation ….........etc> | M5: customary knowledge/Community opinion
A6: Governance | B6: 3a. Clearly defined rules | C6: Are the rules/laws/regulations relating to the protected area clearly defined and documented? | D6: A. Protected area-related rules/laws/regulations are not clearly defined and documented | E6: =VLOOKUP(D6,Responses!B20:D25,2,FALSE) -> A | F6: =VLOOKUP(E6,Responses!C20:E25,2,FALSE) -> 0 | G6: 3 | H6: 0.5 | I6: 1.5 | J6: 0 | K6: Cutomary laws are passed on from ancestors to the current generation | L6: document (write/record) tradtional stories for our children and future generation
A7: Governance | B7: 3b. Clearly defined user/access rights | C7: Are the rights of people to use the protected area and its resources clearly defined and documented? | D7: C. Most of the user/access rights to access resources from the protected area are clearly defined and documented | E7: =VLOOKUP(D7,Responses!B26:D31,2,FALSE) -> C | F7: =VLOOKUP(E7,Responses!C26:E31,2,FALSE) -> 2 | G7: 3 | H7: 0.25 | I7: 0.75 | J7: 0.5 | K7: Access rights are known by everyone. They are not documented but are passed down from the ancestors. | L7: More awareness of acess rights to be carried out in communites - community awareness-village court
A8: Governance | B8: 3c. Awareness of user/access rights | C8: What percentage of adults in the protected area and local community are aware of their user/access rights (e.g. to hunt, collect, fish etc) | D8: B. Some (25-50%) | E8: =VLOOKUP(D8,Responses!B32:D37,2,FALSE) -> B | F8: =VLOOKUP(E8,Responses!C32:E37,2,FALSE) -> 1 | G8: 3 | H8: 0.25 | I8: 0.75 | J8: 0.25 | K8: Less than half the people are aware of their user/access rights relating to cutting down of trees or colleting anything from the bush. Can you say anything about which people/groups of people are the most well-informed? Who is not informed? | L8: Awareness is done by the individuals or groups in public - also environment groups (NGO) conducting awareness. Hausman play a vital role in communication (CAN YOU EXPLAIN THIS) - some areas effective and other areas not effective. We need to improve community halls/resource centres so that information is passed to everyone in the community or village.
A9: Planning | B9: 4. Planning for land use or coastal/marine activities that occur outside the protected area | C9: Does planning for land and coastal/marine uses outside the protected area recognise the protected area and contribute to achieving the management objectives? | D9: A. Planning for the land/marine uses that occur outside the protected area does not take into account the needs of the protected area and the resulting land/sea uses and policies harm the protected area | E9: =VLOOKUP(D9,Responses!B38:D43,2,FALSE) -> A | F9: =VLOOKUP(E9,Responses!C38:E43,2,FALSE) -> 0 | G9: 1 | H9: 1 | I9: 1 | J9: 0 | K9: Animals are hunted for food and to sustain the livelihood of the people in the community. However, the rules and regulations of the proposed protected area are not fully understood by the community (SO WHAT? - are others hunting in the proposed PA???). Also plants are taken by tourists, locals or other people as they do not consider the rules of Mt Wilhelm. | L9: What is needed?
A10: Planning | B10: 4a. Land and water planning for habitat conservation | C10: Planning and management in the wider catchment or landscape containing the protected area incorporates provisions for adequate environmental conditions (e.g. air/water/noise pollution levels etc) to sustain relevant habitats (Y or N) | D10: No | E10: =VLOOKUP(D10,Responses!$E$2:$F$5,2,FALSE) -> 0 | F10: =VLOOKUP(D10,Responses!$E$2:$F$5,2,FALSE) -> 0 | G10: =IF(F10="not relevant",0,3) -> 3 | H10: 0.4 | I10: 1.2 | J10: =IF(F10="NA"," ",F10*H10) -> 0 | L10: What is needed?
A11: Planning | B11: 4b. Land and water planning for connectivity | C11: Management of corridors linking the protected area provides for wildlife passage to key habitats outside the protected area (Y or N) | D11: No | E11: =VLOOKUP(D11,Responses!$E$2:$F$5,2,FALSE) -> 0 | F11: =VLOOKUP(D11,Responses!$E$2:$F$5,2,FALSE) -> 0 | G11: 1 | H11: 0.3 | I11: 0.3 | J11: =IF(F11="NA"," ",F11*H11) -> 0 | K11: Can you please check this answer. Isn't a prime puirpose of the proposed PA to extend the area given protection and to form a landscape corridor - hence planning for connectivity is very important here - BUT I may have this wrong - please check.
A12: Planning | B12: 4c. Land and water planning for ecosystem services and species conservation | C12: Planning addresses ecosystem-specific needs and/or the needs of particular species of concern at an ecosystem scale (Y or N) | D12: No | E12: =VLOOKUP(D12,Responses!$E$2:$F$5,2,FALSE) -> 0 | F12: =VLOOKUP(D12,Responses!$E$2:$F$5,2,FALSE) -> 0 | G12: 1 | H12: 0.3 | I12: 0.3 | J12: =IF(F12="NA"," ",F12*H12) -> 0 | L12: What is needed?
A13: Planning | B13: 5. Protected area design | C13: Is the protected area the right size and shape to protect species, habitats, ecosystems and water catchments? | D13: D. Protected area size and the boundaries (i.e. the design) are very good and we can achieve our objectives | E13: =VLOOKUP(D13,Responses!B44:D49,2,FALSE) -> D | F13: =VLOOKUP(D13,Responses!B44:D49,3,FALSE) -> 3 | G13: 3 | H13: 1 | I13: 3 | J13: =IF(F13="NA"," ",F13*H13) -> 3 | K13: The size of the forest is large and conatins various habitatas,ecosystems and different species and can be conserved. Maybe need to say that the boundaries are not confirmed - is this correct? | L13: What is needed?
A14: Process | B14: 6a. On ground boundary marking of protected area | C14: Is the protected area boundary marked on the ground (land/sea)? | D14: A. None or only a small section of the protected area boundary is marked on the ground | E14: =VLOOKUP(D14,Responses!B50:D55,2,FALSE) -> A | F14: =VLOOKUP(E14,Responses!C50:E55,2,FALSE) -> 0 | G14: 3 | H14: 0.3 | I14: 0.9 | J14: 0 | K14: Using natural features as boundaries such as rivers and ranges | L14: GPS coordinates to be used as marke the boundary clearly FIX this
A15: Process | B15: 6b. Map of protected area boundaries | C15: The boundaries of the protected area are marked on a map (Y or N) | D15: No | E15: =VLOOKUP(D15,Responses!$E$2:$F$4,2,FALSE) -> 0 | F15: =VLOOKUP(D15,Responses!$E$2:$F$4,2,FALSE) -> 0 | G15: 1 | H15: 0.4 | I15: 0.4 | J15: 0 | L15: Create a boundary when it is protetced | N15: IRRM a registered ngo already created a boundary using GPS coordinates for a foot track
A16: Process | B16: 6c. GIS mapping of protected area boundaries | C16: The boundaries of the protected area are recorded in a GIS format (Y or N) | D16: No | E16: =VLOOKUP(D16,Responses!$E$2:$F$4,2,FALSE) -> 0 | F16: =VLOOKUP(D16,Responses!$E$2:$F$4,2,FALSE) -> 0 | G16: 1 | H16: 0.3 | I16: 0.3 | J16: 0 | L16: Identify boundaries and get a GPS reading
A17: Process | B17: 6d. Boundary awareness of people who own the protected area | C17: What proportion of land owners (e.g. customary landowning adults) are aware of the protected area boundaries? | D17: C. Many (51-75%) | E17: =VLOOKUP(D17,Responses!B56:D61,2,FALSE) -> C | F17: =VLOOKUP(E17,Responses!C56:E61,2,FALSE) -> 2 | G17: 3 | H17: 0.5 | I17: 1.5 | J17: 1 | K17: Customary Landowners know internal and external boundaries | L17: Need to improve boundaries-ILG needs to be registerd but all should come to one common understanding
A18: Process | B18: 6e. Boundary awareness among surrounding communities | C18: What proportion of adults living around or near the protected area know the location of the boundary? | D18: C. Many (51-75%) | E18: =VLOOKUP(D18,Responses!B56:D61,2,FALSE) -> C | F18: =VLOOKUP(E18,Responses!C56:E61,2,FALSE) -> 2 | G18: 3 | H18: 0.5 | I18: 1.5 | J18: 1 | K18: Customary Landowners know internal and external boundaries | L18: Need to improve boundaries-ILG needs to be registerd but all should come to one common understanding
A19: Process | B19: 6f. Respect of boundary by surrounding communities | C19: What proportion of adults living around or near the protected area respect the boundary? | D19: B. Some (25-50%) | E19: =VLOOKUP(D19,Responses!B56:D61,2,FALSE) -> B | F19: =VLOOKUP(E19,Responses!C56:E61,2,FALSE) -> 1 | G19: 3 | H19: 0.4 | I19: 1.2 | J19: 0.4 | K19: Some borders are internal and do not have disputes while other borders are shared and they have disputes over animals, trees, plants and land | L19: Need an ILG to be registerd. Protected area Objection period should be agreed by both sides that share the borders and all should come to one common understanding
A20: Process | B20: 6g. Respect of boundaries by Local Level Government | C20: Most or all relevant Local Level Governments are aware of the boundaries of the protected area (Y or N) | D20: No | E20: =VLOOKUP(D20,Responses!$E$2:$F$4,2,FALSE) -> 0 | F20: =VLOOKUP(D20,Responses!$E$2:$F$4,2,FALSE) -> 0 | G20: 1 | H20: 0.3 | I20: 0.3 | J20: 0 | K20: The current local level governements are not sure or do not fully understand. | L20: What is needed?
A21: Process | B21: 6h. Respect of boundaries at the District level | C21: Most or all of the relevant District level representatives are aware of the boundaries of the protected area (Y or N) | D21: No | E21: =VLOOKUP(D21,Responses!$E$2:$F$4,2,FALSE) -> 0 | F21: =VLOOKUP(D21,Responses!$E$2:$F$4,2,FALSE) -> 0 | G21: 1 | H21: 0.3 | I21: 0.3 | J21: 0 | K21: Verbally speaking but do not know the actual boundary | L21: Incorporation of ILG
A22: Planning | B22: 7. Management planning | C22: Is there a management plan or similar and is it being implemented? | D22: A. There is no management plan for the protected area, or the management plan was produced a long time ago and is not being implemented | E22: =VLOOKUP(D22,Responses!B62:D67,2,FALSE) -> A | F22: =VLOOKUP(E22,Responses!C62:E67,2,FALSE) -> 0 | G22: 3 | H22: 1 | I22: 3 | J22: 0 | L22: What is needed? | N22: NA
A23: Planning | B23: 7a. Community/key people input into management plan | C23: The management planning process for the protected area provides adequate and equal opportunity for key people (i.e. includes government, NGO, business etc) to have input into the management plan and to influence it (Do not include customary landowners in this question) (Y or N) | D23: No | E23: =VLOOKUP(D23,Responses!$E$2:$F$4,2,FALSE) -> 0 | F23: =VLOOKUP(D23,Responses!$E$2:$F$4,2,FALSE) -> 0 | G23: 1 | H23: 1 | I23: 1 | J23: 0 | L23: What is needed? | N23: NA
A24: Planning | B24: 7b. Plan review of the management plan | C24: There is an established schedule and process for people to regularly review and update the management plan (i.e. including agreed vision, objectives, actions etc) (Y or N) | D24: No | E24: =VLOOKUP(D24,Responses!$E$2:$F$4,2,FALSE) -> 0 | F24: =VLOOKUP(D24,Responses!$E$2:$F$4,2,FALSE) -> 0 | G24: 1 | H24: 1 | I24: 1 | J24: 0 | L24: What is needed? | N24: NA
A25: Process | B25: 7c. Functioning protected area Management Committee | C25: The Management Committee is formed and meets to discuss issues related to protected area management (Y or N) | D25: No | E25: =VLOOKUP(D25,Responses!$E$2:$F$4,2,FALSE) -> 0 | F25: =VLOOKUP(D25,Responses!$E$2:$F$4,2,FALSE) -> 0 | G25: 1 | H25: 0.25 | I25: 0.25 | J25: 0 | L25: What is needed? | N25: NA
A26: Governance | B26: 7d. Are there clear decision-making structures and processes in relation to the management committee? | C26: Structures and processes in relation to the Management Committee and related protected area decision making are clearly documented (Y or N) | D26: No | E26: =VLOOKUP(D26,Responses!$E$2:$F$4,2,FALSE) -> 0 | F26: =VLOOKUP(D26,Responses!$E$2:$F$4,2,FALSE) -> 0 | G26: 1 | H26: 0.25 | I26: 0.25 | J26: 0 | L26: What is needed? | N26: NA
A27: Governance | B27: 7e. Decision-making structures and processes in relation to the management committee | C27: Are the structures and processes for decision-making in the protected area well understood? | D27: A. Structures and processes in relation to the Management Committee and related protected area decision-making are not known or understood by the protected area owners | E27: =VLOOKUP(D27,Responses!B68:D73,2,FALSE) -> A | F27: =VLOOKUP(E27,Responses!C68:E73,2,FALSE) -> 0 | G27: 3 | H27: 0.25 | I27: 0.75 | J27: 0 | L27: What is needed? | N27: NA
A28: Governance | B28: 7f. Access to Management Committee decisions | C28: The decisions of the Management Committee/managers are made available to all people in the protected area community (Y or N) | D28: No | E28: =VLOOKUP(D28,Responses!$E$2:$F$4,2,FALSE) -> 0 | F28: =VLOOKUP(D28,Responses!$E$2:$F$4,2,FALSE) -> 0 | G28: 1 | H28: 0.25 | I28: 0.25 | J28: 0 | L28: What is needed? | N28: NA
A29: Planning | B29: 8. Regular work plan | C29: Is there a regular work plan and is it being implemented? | D29: A. No regular work plan exists | E29: =VLOOKUP(D29,Responses!B74:D79,2,FALSE) -> A | F29: =VLOOKUP(E29,Responses!C74:E79,2,FALSE) -> 0 | G29: 3 | H29: 1 | I29: 3 | J29: 0 | L29: What is needed? | N29: NA
A30: Input | B30: 9. Resource inventory | C30: Do you have enough information to manage the area? | D30: A. There is little or no information available about the protected area (e.g. critical habitats, species, ecological process and cultural values) and this makes management difficult | E30: =VLOOKUP(D30,Responses!B80:D85,2,FALSE) -> A | F30: =VLOOKUP(E30,Responses!C80:E85,2,FALSE) -> 0 | G30: 3 | H30: 1 | I30: 3 | J30: 0 | K30: Some informaion on lakes, stones, plants,animals | L30: More biodiversty and cultural studies to be carried out
A31: Input | B31: 10. Staff numbers | C31: Are there enough people employed or paid to manage the protected area? | D31: A. There are no staff/people paid to work on the protected area, but they are ’needed | E31: =VLOOKUP(D31,Responses!B86:D91,2,FALSE) -> A | F31: =VLOOKUP(E31,Responses!C86:E91,2,FALSE) -> 0 | G31: 3 | H31: 1 | I31: 3 | J31: 0 | L31: What is needed?
A32: Input | B32: 10a. Other unpaid people working on the protected area | C32: Are there enough unpaid people (community or customary landowners) helping to manage the protected area? | D32: A. There are no community members or customary landowners helping to manage the protected area, but they are needed | E32: =VLOOKUP(D32,Responses!B92:D972,2,FALSE) -> A | F32: =VLOOKUP(E32,Responses!C92:E972,2,FALSE) -> 0 | G32: 3 | H32: 1 | I32: 3 | J32: 0 | L32: What is needed?
A33: Input | B33: 11. Knowledge and skills | C33: Do the people involved in managing the protected area have the necessary knowledge and skills? | D33: A. Knowledge and skills needed to manage the protected area are very poor or inadequate | E33: =VLOOKUP(D33,Responses!B98:D103,2,FALSE) -> A | F33: =VLOOKUP(E33,Responses!C98:E103,2,FALSE) -> 0 | G33: 3 | H33: 1 | I33: 3 | J33: 0 | L33: Local knowledge is there but need scientifc knowledge to be taught to the local people - what in particular?
A34: Input | B34: 12. Current budget | C34: Is the current budget sufficient (from any source)? | D34: A. There is no money from any source to manage the protected area | E34: =VLOOKUP(D34,Responses!B104:D109,2,FALSE) -> A | F34: =VLOOKUP(E34,Responses!C104:E109,2,FALSE) -> 0 | G34: 3 | H34: 1 | I34: 3 | J34: 0 | L34: What is needed? | N34: NA
A35: Input | B35: 13. Security of budget | C35: Is the budget secure (e.g. over the next 2-5 years)? | D35: A. There is no secure budget to manage the protected area and management is wholly reliant on outside or highly variable funding | E35: =VLOOKUP(D35,Responses!B110:D115,2,FALSE) -> A | F35: =VLOOKUP(E35,Responses!C110:E115,2,FALSE) -> 0 | G35: 3 | H35: 1 | I35: 3 | J35: 0 | L35: What is needed? | N35: NA
A36: Process | B36: 14. Management of budget | C36: Is the budget managed to meet important management needs? | D36: A. Budget management is very poor and significantly undermines management effectiveness | E36: =VLOOKUP(D36,Responses!B116:D121,2,FALSE) -> A | F36: =VLOOKUP(E36,Responses!C116:E121,2,FALSE) -> 0 | G36: 3 | H36: 1 | I36: 3 | J36: =IF(F36="NA"," ",F36*H36) -> 0 | K36: This response is probably not relevant - as there is no budget - consider changing. | L36: What is needed? | N36: NA
A37: Input | B37: 15a. Equipment and facilities | C37: Are equipment and facilities sufficient for management needs? | D37: A. There are little or no equipment and facilities for management needs | E37: =VLOOKUP(D37,Responses!B122:D127,2,FALSE) -> A | F37: =VLOOKUP(E37,Responses!C62:E67,2,FALSE) -> 0 | G37: 3 | H37: 1 | I37: 3 | J37: 0 | L37: What is needed? | N37: NA
A38: Process | B38: 15b. Maintenance of equipment and facilities | C38: Are equipment and facilities adequately maintained? | D38: A. There is no maintenance of equipment and facilities | E38: =VLOOKUP(D38,Responses!B128:D133,2,FALSE) -> A | F38: =VLOOKUP(E38,Responses!C128:E133,2,FALSE) -> 0 | G38: 3 | H38: 1 | I38: 3 | J38: =IF(F38="NA"," ",F38*H38) -> 0 | K38: This response is probably not relevant - as there is equipment etc - consider changing. | L38: What is needed? | N38: NA
A39: Process | B39: 16. Law enforcement | C39: Can people (e.g. rangers or customary landowners – those with responsibility for managing the area) enforce protected area rules well enough? | D39: A. There is no effective human capacity, resources or authority to enforce protected area legislation and regulations OR community agreements | E39: =VLOOKUP(D39,Responses!B134:D139,2,FALSE) -> A | F39: =VLOOKUP(E39,Responses!C134:E139,2,FALSE) -> 0 | G39: 3 | H39: 1 | I39: 3 | J39: 0 | K39: Now it is not a protected area but later when it is protected then human training on conservation will have to be conducted. This actually refers to existing rules that are in place relating to cutting of trees, hunting etc - so can relevant people enforce these rules? | L39: What is needed? | N39: NA
A40: Governance | B40: 16a. Coordination of law enforcement | C40: How good is the coordination between the protected area Management Committee/managers and other groups who assist with law enforcement? | D40: A. There is no coordination | E40: =VLOOKUP(D40,Responses!B140:D145,2,FALSE) -> A | F40: =VLOOKUP(E40,Responses!C140:E145,2,FALSE) -> 0 | G40: 3 | H40: 0.5 | I40: 1.5 | J40: 0 | K40: Currently it is not exercised as this area is not a protected area therefore consevation rules and regulations are not carried out. | L40: What is needed? | N40: NA
A41: Governance | B41: 16b. Solving disputes or disagreements - documentation of processes | C41: Are there process to solve disputes related to the protected area, and do people know about these processes? | D41: D. Most of the relevant dispute resolution processes are clearly documented or known and anyone who wants to see and review/discuss this information is able to do so | E41: =VLOOKUP(D41,Responses!B146:D151,2,FALSE) -> D | F41: =VLOOKUP(E41,Responses!C146:E151,2,FALSE) -> 3 | G41: 3 | H41: 0.5 | I41: 1.5 | J41: 1.5 | K41: Main disputes such as land, plants - Sorted out at the village court; land mediators village court magistrates | L41: Document process on solving the conflict or disputes.
A42: Governance | B42: 16c. Solving disputes or disagreements – suitability of the process | C42: How suitable are the processes for resolving disputes or disagreements related to the protected area? | D42: B. Dispute resolution processes are not suitable for solving protected area-related disputes | E42: =VLOOKUP(D42,Responses!B152:D157,2,FALSE) -> B | F42: =VLOOKUP(E42,Responses!C152:E157,2,FALSE) -> 1 | G42: 3 | H42: 0.25 | I42: 0.75 | J42: 0.25 | L42: PA environment law system for solving disputes has to connect with local level government law systems for resolutions to be agreed upon in the best way.
A43: Governance | B43: 16d. Solving disputes or disagreements - success | C43: How often do dispute resolution processes succeed in resolving protected area-related disputes? | D43: C. Most disputes are resolved, but often there are some people who remain dissatisfied | E43: =VLOOKUP(D43,Responses!B158:D163,2,FALSE) -> C | F43: =VLOOKUP(E43,Responses!C158:E163,2,FALSE) -> 2 | G43: 3 | H43: 0.25 | I43: 0.75 | J43: 0.5 | K43: Bribery is common during solving conflicts or disputes these days. | L43: Village court and enforcers, lands mediation team need to be trained on the environment rules, regulations and law to resolve disputes correctly.
A44: Governance | B44: 16e. Prosecution of law breakers | C44: Are incidents of law breaking dealt with according to the rules/ law/ regulations? | D44: C. Most incidents are handled according to the rules/law/regulations, but there are occasional irregularities | E44: =VLOOKUP(D44,Responses!B164:D169,2,FALSE) -> C | F44: =VLOOKUP(E44,Responses!C164:E169,2,FALSE) -> 2 | G44: 3 | H44: 0.5 | I44: 1.5 | J44: 1 | K44: Village court always solve disputes but once in a while go out of line. | L44: What is needed?
A45: Governance | B45: 16f. Prosecution of law breakers | C45: All people are treated equally in relation to charges/prosecution for breaching protected area rules/laws/regulations (Y or N) | D45: No | E45: =VLOOKUP(D45,Responses!$E$2:$F$4,2,FALSE) -> 0 | F45: =VLOOKUP(D45,Responses!$E$2:$F$4,2,FALSE) -> 0 | G45: 1 | H45: 0.5 | I45: 0.5 | J45: 0 | K45: Our children went to the forest and collected the plant ferns and were told by the rangers to pay but if the rangers saw their family, relatives and tourists do that then they let them go' | L45: Give the rangers power to penalise people - train the rangers on environment rules and laws -do/carry out more environmental awareness in the communities
A46: Process | B46: 17. Protection systems/law enforcement - effectiveness | C46: Are systems (e.g. patrols, permits, signage etc) in place to control access by ‘outsiders’ and resource use in the protected area | D46: A. Protection systems/law enforcement (patrols, permits etc) do not exist or are not effective in controlling access/ resource use by ‘outsiders’, but are required | E46: =VLOOKUP(D46,Responses!B170:D175,2,FALSE) -> A | F46: =VLOOKUP(E46,Responses!C170:E175,2,FALSE) -> 0 | G46: 3 | H46: 1 | I46: 3 | J46: 0 | K46: No rangers at the moment - not a protected area yet - | L46: Need to have rangers based at the site to patrol the proposed protected area.
A47: Governance | B47: 17a. Reporting incidents | C47: If people know of a threat to the protected area do they report this to the Management Committee/ authority? | D47: C. Most times it is reported, although sometimes not | E47: =VLOOKUP(D47,Responses!B176:D181,2,FALSE) -> C | F47: =VLOOKUP(E47,Responses!C72:E77,2,FALSE) -> 2 | G47: 3 | H47: 0.5 | I47: 1.5 | J47: 1 | L47: Have strong or severe laws in place to stop people to collect this - more awareness to be carried out
A48: Process | B48: 18. Staff safety | C48: Do protected area staff/people doing work or looking after the area have safe working conditions and does management prioritise safety? | D48: A. The working environment for staff and community members is very poor | E48: =VLOOKUP(D48,Responses!B182:D187,2,FALSE) -> A | F48: =VLOOKUP(E48,Responses!C182:E187,2,FALSE) -> 0 | G48: 3 | H48: 1 | I48: 3 | J48: 0 | L48: What is needed? | N48: NA
A49: Process | B49: 19. Research | C49: Is there a programme of management-orientated survey, inventory and research work? | D49: B. There is some survey, inventory or research work but it is not directed towards the needs of protected area management | E49: =VLOOKUP(D49,Responses!B188:D193,2,FALSE) -> B | F49: =VLOOKUP(E49,Responses!C188:E193,2,FALSE) -> 1 | G49: 3 | H49: 1 | I49: 3 | J49: 1 | K49: WCS research on wildlife studies and biodiversity once in a while | L49: What is needed? | N49: NA
A50: Process | B50: 20. Monitoring and evaluation (of management activities) | C50: Are management activities monitored, evaluated and acted on (or adapted)? | D50: A. There is no monitoring and evaluation in the protected area | E50: =VLOOKUP(D50,Responses!B194:D199,2,FALSE) -> A | F50: =VLOOKUP(E50,Responses!C194:E199,2,FALSE) -> 0 | G50: 3 | H50: 1 | I50: 3 | J50: 0 | L50: What is needed? | N50: NA
A51: Process | B51: 21. Resource management | C51: Is active resource management of biodiversity and cultural activities (e.g. gardens, fishing areas, resource extraction sites) being undertaken? | D51: A. There is no active resource management of critical habitats, species, ecological processes and cultural values, but it is needed | E51: =VLOOKUP(D51,Responses!B200:D205,2,FALSE) -> A | F51: =VLOOKUP(E51,Responses!C200:E205,2,FALSE) -> 0 | G51: 3 | H51: 1 | I51: 3 | J51: 0 | K51: Currently not a Protected Area | L51: Proper land use and resource management planning needed
A52: Process | B52: 22. Climate change | C52: Is the protected area consciously managed to adapt to climate change? | D52: A. There have been no efforts to consider adaptation to climate change in management of the protected area | E52: =VLOOKUP(D52,Responses!B206:D211,2,FALSE) -> A | F52: =VLOOKUP(E52,Responses!C206:E211,2,FALSE) -> 0 | G52: 3 | H52: 1 | I52: 3 | J52: =IF(F52="NA"," ",F52*H52) -> 0 | K52: Re-planting of trees- Stop bush fires | L52: More awareness to be carried out planting of tress and stop bush fires
A53: Process | B53: 23a. Carbon capture | C53: Is the protected area being consciously managed to prevent carbon loss? | D53: B. Preventing carbon loss has been considered in general terms, but is not reflected in management of the protected area | E53: =VLOOKUP(D53,Responses!B212:D217,2,FALSE) -> B | F53: =VLOOKUP(E53,Responses!C212:E217,2,FALSE) -> 1 | G53: 3 | H53: 0.5 | I53: 1.5 | J53: =IF(F53="NA"," ",F53*H53) -> 0.5 | K53: Are told to do selective tree cutting and so the remaining forest is left intact to absorb carbon | L53: What is needed?
A54: Process | B54: 23b. Carbon storage | C54: Is the protected area being consciously managed to encourage carbon storage? | D54: B. Carbon storage has been considered in general terms, but is not significantly reflected in management of the protected area | E54: =VLOOKUP(D54,Responses!B218:D223,2,FALSE) -> B | F54: =VLOOKUP(E54,Responses!C218:E223,2,FALSE) -> 1 | G54: 3 | H54: 0.5 | I54: 1.5 | J54: =IF(F54="NA"," ",F54*H54) -> 0.5 | K54: Are told to do selective tree cutting and so the remaining forest is left intact to absorb carbon and the trees store carbon | L54: Pigs to be put in a fence so that they do not disturb the re-growth of trees
A55: Process | B55: 24. Ecosystem services – benefits are known | C55: The ecosystem services provided by the protected area are well known (Y or N) | D55: Yes | E55: =VLOOKUP(D55,Responses!$E$2:$F$5,2,FALSE) -> 1 | F55: =VLOOKUP(D55,Responses!$E$2:$F$5,2,FALSE) -> 1 | G55: 1 | H55: 0.5 | I55: 0.5 | J55: =IF(F55="NA"," ",F55*H55) -> 0.5 | K55: Clean water,fresh air, trees prevent erosion, plants provide food, fibre, medicine, bulding materials, traditional bilas materials obatined such as bird feathers, bark, for tradtional ceremonies | L55: Carry out more ecosystem studies
A56: Process | B56: 24a. Ecosystem services | C56: Does management of the protected area take into account actions to enhance the protected area’s provision of ecosystem services? | D56: A. No ecosystem services delivered by the protected area are managed | E56: =VLOOKUP(D56,Responses!B224:D229,2,FALSE) -> A | F56: =VLOOKUP(E56,Responses!C224:E229,2,FALSE) -> 0 | G56: 3 | H56: 0.5 | I56: 1.5 | J56: 0 | K56: Maybe reconsider this as people report that there are rules on hunting, cutting trees etc - presumably to protect ecosystem values?? | N56: NA
A57: Process | B57: 25. Education and awareness | C57: Is there a planned education and awareness programme about the protected area and linked to its objectives and needs? | D57: C. There is an education and awareness programme, but it only partly meets the needs of protected area management and could be improved | E57: =VLOOKUP(D57,Responses!B230:D235,2,FALSE) -> C | F57: =VLOOKUP(E57,Responses!C82:E87,2,FALSE) -> 2 | G57: 3 | H57: 1 | I57: 3 | J57: 2 | K57: During world environment day - community schools- tree planting activities.The district - sales of seedlings, herbs and various plants on display -awareness on tree planting to celebrate the day | L57: Community program to run these environemental awareness as well which will disseminate and educate more information to the whole community
A58: Process | B58: 26. Government neighbours and commercial neighbour cooperation | C58: Is there co-operation with adjacent government neighbours and commercial land/water users? | D58: A. There is no contact between the Management Committee/managers and neighbouring government and commercial land/water users | E58: =VLOOKUP(D58,Responses!B236:D241,2,FALSE) -> A | F58: =VLOOKUP(E58,Responses!C83:E88,2,FALSE) -> 0 | G58: 3 | H58: 1 | I58: 3 | J58: 0 | L58: What is needed?
A59: Process | B59: 27. Commercial tourism operators | C59: Do commercial tour operators cooperate and contribute to protected area management and provide benefits to the community? | D59: C. There is contact and limited co-operation between the Management Committee/managers and tourism operators to enhance visitor experiences, maintain protected area values and provide some benefits to the customary landowners | E59: =VLOOKUP(D59,Responses!B242:D247,2,FALSE) -> C | F59: =VLOOKUP(E59,Responses!C242:E247,2,FALSE) -> 2 | G59: 3 | H59: 1 | I59: 3 | J59: =IF(F59="NA"," ",F59*H59) -> 2 | K59: A small payment is given to the carrires who carry the clothe and, some valuable things given by the tourists - 4 tracks in total- 3 tracks not formally recogized but only 1 track fomally recognised which is Mt Wilhem | L59: Formalise the 3 current tracks
A60: Process | B60: 28. Fees | C60: If fees (i.e. entry fees or fines) are applied, do they help protected area management? | D60: A. Although fees can be applied, they are not collected | E60: =VLOOKUP(D60,Responses!B248:D253,2,FALSE) -> A | F60: =VLOOKUP(E60,Responses!C248:E253,2,FALSE) -> 0 | G60: 3 | H60: 1 | I60: 3 | J60: =IF(F60="NA"," ",F60*H60) -> 0 | L60: What is needed? | N60: NA
A61: Output | B61: 29. Visitor facilities and services | C61: Are visitor facilities and services adequate? | D61: C. Visitor facilities and services are good – they meet the needs of the current visitor levels but could be improved | E61: =VLOOKUP(D61,Responses!B254:D259,2,FALSE) -> C | F61: =VLOOKUP(E61,Responses!C86:E91,2,FALSE) -> 2 | G61: 3 | H61: 1 | I61: 3 | J61: 2 | K61: Guest house facilities in good condition - cultural dances -tradtional food cooked and served. ARE these in the PA -a previous question said there were no facilities?
A62: Process | B62: 30. Customary landowners | C62: Do customary landowners, who reside in or regularly use the protected area, have input into management decisions? | D62: D. Customary landowners fully participate in all relevant decisions relating to management, (e.g. outright ownership or co-management arrangement) | E62: =VLOOKUP(D62,Responses!B260:D265,2,FALSE) -> D | F62: =VLOOKUP(E62,Responses!C260:E265,2,FALSE) -> 3 | G62: 3 | H62: 1 | I62: 3 | J62: =IF(F62="NA"," ",F62*H62) -> 3 | K62: Clan leaders, leaders and representaives from each clan represetning clans on land issues - man are the ones that do the most decisions - this days women empowerment (NOT sure what this means - can you please explain the role of women in decision making) | L62: include more in decision and strengthen this - women empowerment
A63: Process | B63: 31. Local communities and others with access or user ‘rights’ | C63: Do local communities and other rights’ holders living in or near the protected area, have input into relevant management decisions? | D63: B. Local communities and others with ‘access/user rights’ have some input into discussions relating to the management of the protected area, but no direct role in management | E63: =VLOOKUP(D63,Responses!B266:D271,2,FALSE) -> B | F63: =VLOOKUP(E63,Responses!C88:E93,2,FALSE) -> 1 | G63: 3 | H63: 1 | I63: 3 | J63: 1 | K63: People residing outside from their villages still have the right to make decisions for their land land as rightful customary land owners. Girls are married outside but if they are next of kin then they can make decisions- Men are the common decision makers, but this depends on each family.
A64: Governance | B64: 31a. Proportion of women involved in decision making related to the protected area | C64: What percentage of women in the protected area community are involved in decision making about the protected area? | D64: A. Very few (less than 25%) | E64: =VLOOKUP(D64,Responses!B272:D277,2,FALSE) -> A | F64: =VLOOKUP(E64,Responses!C89:E94,2,FALSE) -> 0 | G64: 3 | H64: 0.25 | I64: 0.75 | J64: 0 | K64: Men are common decision makers during a community meeting or gathering. Women influence men at home with some decisions which the men discuss during the meeting. | L64: Gender balance
A65: Governance | B65: 31b. Participation of women in the full range of protected area decisions | C65: Women are involved in protected area decision making in relation to all issues relevant to protected area management (Y or N) | D65: No | E65: =VLOOKUP(D65,Responses!$E$2:$F$4,2,FALSE) -> 0 | F65: =VLOOKUP(D65,Responses!$E$2:$F$4,2,FALSE) -> 0 | G65: 1 | H65: 0.25 | I65: 0.25 | J65: 0 | K65: Mt Wihelm has men rangers only -Most decsions at home or as a community is only made by men | L65: Equal compostion of memders on the management committee -Employment of men and women rangers in the protected area -include women in the council and leadership roles
A66: Governance | B66: 31c. Influence of women in decision making | C66: How much influence do women have on protected-area related decisions? | D66: B. Women have a small influence on protected area decisions | E66: =VLOOKUP(D66,Responses!B278:D283,2,FALSE) -> B | F66: =VLOOKUP(E66,Responses!C278:E283,2,FALSE) -> 1 | G66: 3 | H66: 0.25 | I66: 0.75 | J66: 0.25 | K66: (1) Cultural barrier within the community (2) Level of education (3) Biblical influence | L66: More training and education made available for women and girls
A67: Governance | B67: 31d. Participation of young people in the full range of protected area decisions | C67: Young people (under 20 years of age) are involved in protected area decision making in relation to all issues relevant to protected area management (Y or N) | D67: Yes | E67: =VLOOKUP(D67,Responses!$E$2:$F$4,2,FALSE) -> 1 | F67: =VLOOKUP(D67,Responses!$E$2:$F$4,2,FALSE) -> 1 | G67: 1 | H67: 0.25 | I67: 0.25 | J67: 0.25 | K67: Youth voices are heard during a community gathering and their opinions are taken into consideration and weighed out.
A68: Governance | B68: 31e. Influence of young people in decision making | C68: How much influence do young people (under 20 years of age) have on protected-area related decisions? | D68: C. Young people can often influence protected area decisions | E68: =VLOOKUP(D68,Responses!B284:D289,2,FALSE) -> C | F68: =VLOOKUP(E68,Responses!C93:E98,2,FALSE) -> 2 | G68: 3 | H68: 0.25 | I68: =G68*H68 -> 0.75 | J68: =IF(F68="not relevant"," ",F68*H68) -> 0.5 | K68: Youths with good character, reputation and have important opnions are considered. | L68: 1. Organised sports groups that are represented by the lead sportsman/woman. 2. Youths engaged with church activities also represent the youths.
A69: Governance | B69: 31f. Overall participation of people in the full range of protected area decisions | C69: There is opportunity for any person or group in the protected area and wider community to become involved in protected area decision making (Y or N) | D69: Yes | E69: =VLOOKUP(D69,Responses!$E$2:$F$4,2,FALSE) -> 1 | F69: =VLOOKUP(D69,Responses!$E$2:$F$4,2,FALSE) -> 1 | G69: 1 | H69: 0.25 | I69: 0.25 | J69: 0.25 | K69: Landowners are the ones that participate whether they are outspoken or quiet and later the leaders come in to assist them. | L69: Create an organising committee to represent everyone in the community.
A70: Output | B70: 31g. There is communication and trust between the customary landowners and … | C70: 1. CEPA (Y or N) | D70: No | E70: =VLOOKUP(D70,Responses!$E$2:$F$4,2,FALSE) -> 0 | F70: =VLOOKUP(D70,Responses!$E$2:$F$4,2,FALSE) -> 0 | G70: 1 | H70: 0.5 | I70: 0.5 | J70: 0 | K70: UNDP GEF through Tony | L70: Communicated through Tony
A71: Output | C71: 2. Provincial Government (Y or N) | D71: No | E71: =VLOOKUP(D71,Responses!$E$2:$F$4,2,FALSE) -> 0 | F71: =VLOOKUP(D71,Responses!$E$2:$F$4,2,FALSE) -> 0 | G71: 1 | H71: 0.5 | I71: 0.5 | J71: 0 | K71: Tony contacted the President LLG Managress and relayed the message | L71: What is needed?
A72: Output | C72: 3. Local Level Government (Y or N) | D72: Yes | E72: =VLOOKUP(D72,Responses!$E$2:$F$4,2,FALSE) -> 1 | F72: =VLOOKUP(D72,Responses!$E$2:$F$4,2,FALSE) -> 1 | G72: 1 | H72: 0.25 | I72: 0.25 | J72: 0.25 | K72: Pesident and manger communicated with the ward councillors | L72: What is needed?
A73: Output | C73: 4. District representatives (e.g. District Development Authority) (Y or N) | D73: Yes | E73: =VLOOKUP(D73,Responses!$E$2:$F$4,2,FALSE) -> 1 | F73: =VLOOKUP(D73,Responses!$E$2:$F$4,2,FALSE) -> 1 | G73: 1 | H73: 0.25 | I73: 0.25 | J73: 0.25 | K73: Pesident LLG Manageress communicated with the ward councillors | L73: What is needed?
A74: Output | C74: 5. Ward representatives (e.g. Ward Development Committee) (Y or N) | D74: Yes | E74: =VLOOKUP(D74,Responses!$E$2:$F$4,2,FALSE) -> 1 | F74: =VLOOKUP(D74,Responses!$E$2:$F$4,2,FALSE) -> 1 | G74: 1 | H74: 0.25 | I74: 0.25 | J74: 0.25 | K74: WardCouncillors communicated with the ward representatives | L74: What is needed?
A75: Output | C75: 6. NGOs (Y or N) | D75: No | E75: =VLOOKUP(D75,Responses!$E$2:$F$4,2,FALSE) -> 0 | F75: =VLOOKUP(D75,Responses!$E$2:$F$4,2,FALSE) -> 0 | G75: 1 | H75: 0.25 | I75: 0.25 | J75: 0 | L75: What is needed?
A76: Output | B76: 31h. Community welfare | C76: Programmes are being implemented to improve community/customary landowners’ welfare, while conserving protected area resources (Y or N) | D76: No | E76: =VLOOKUP(D76,Responses!$E$2:$F$4,2,FALSE) -> 0 | F76: =VLOOKUP(D76,Responses!$E$2:$F$4,2,FALSE) -> 0 | G76: 1 | H76: 1 | I76: 1 | J76: 0 | K76: Get the ???? In Q32c there is a list of all the projects that have been implemented and many of these would improve community welfare. Does this question need to be reconsidered? | L76: Increase PA boundary so that it covers all wards so that it benefits the communities and improves livelihoods of the people.
A77: Output | B77: 31i. Level of support | C77: The local community and customary landowners actively support the protected area (Y or N) | D77: Yes | E77: =VLOOKUP(D77,Responses!$E$2:$F$4,2,FALSE) -> 1 | F77: =VLOOKUP(D77,Responses!$E$2:$F$4,2,FALSE) -> 1 | G77: 1 | H77: 1 | I77: 1 | J77: 1 | K77: Particpation and interest of the local community in their attendance of the worknshop now - toursim activities to benefit the local community | L77: What is needed?
A78: Output | B78: 32. Livelihood benefits | C78: Are the protected area and related conservation and development projects providing sustained livelihood benefits to local communities/customary landowners, e.g. income/ employment? | D78: A. The protected area does not deliver any livelihood benefits to local communities/ customary landowners (no people benefit) | E78: =VLOOKUP(D78,Responses!B290:D295,2,FALSE) -> A | F78: =VLOOKUP(E78,Responses!C290:E295,2,FALSE) -> 0 | G78: =IF(F78="not relevant",0,3) -> 3 | H78: 1 | I78: 3 | J78: 0 | K78: Improve boundary - Equal engagement of rangers from all areas | L78: Improve boundary - Equal engagement of rangers from all the wards - market foot tracks to tourists so that they can choose
A79: Governance | B79: 32a. Benefit-sharing arrangements - effectiveness | C79: How effective are benefit-sharing arrangements in delivering benefits to all in the protected area? | D79: A. There are no benefit-sharing arrangements in place | E79: =VLOOKUP(D79,Responses!B296:D301,2,FALSE) -> A | F79: =VLOOKUP(E79,Responses!C296:E301,2,FALSE) -> 0 | G79: 3 | H79: 0.5 | I79: 1.5 | J79: =IF(F79="NA"," ",F79*H79) -> 0 | L79: What is needed?
A80: Governance | B80: 32b. Distribution of livelihood benefits | C80: Are the livelihood benefits from the protected area equitably shared? | D80: A. The livelihood benefits provided by the protected area are not shared equitably by the local communities/customary landowners | E80: =VLOOKUP(D80,Responses!B302:D307,2,FALSE) -> A | F80: =VLOOKUP(E80,Responses!C302:E307,2,FALSE) -> 0 | G80: 3 | H80: 0.25 | I80: 0.75 | J80: =IF(F80="NA"," ",F80*H80) -> 0 | L80: Benefit sharing agreement between all parties involved | N80: NA
A81: Governance | B81: 32c Change in livelihoods over the past five years | C81: There has been an improvement in livelihood outcomes for the community over the past five years? (Y or N) | D81: Yes | G81: 1 | H81: 0.25 | I81: 0.25 | J81: 0 | K81: Currently from WARD 12 -17 there are; 3 aid posts, 2 newly built schools and 1 old school,construction of roads to central location,access of water supply,communities are growing and selling potato, bulb onion, vegetables and individuals in the community are building their houses. Communites have some basic services and are benefiting. | L81: Feeder roads to be improved and sealed, need roadsto be made to gardens to transport food. More tourist guest houses to be made and improvment of the foot tracks for trekking. Construction of community halls. Make market accessible for local farmers to encourge growth and sales of their vegetables.
A82: Output | B82: 33. Threats | C82: Are the threats to the main values of the protected area being effectively addressed? | D82: B. The threats to the main values are only being managed at a minimal level | E82: =VLOOKUP(D82,Responses!B308:D313,2,FALSE) -> B | F82: =VLOOKUP(E82,Responses!C108:E113,2,FALSE) -> 1 | G82: 3 | H82: 1 | I82: 3 | J82: 1 | K82: Bush fires and habitat clearing are seen as managable through conducting awareness - coordination between all level of government, landslides, deliberate threats and activites to own land by landowners are seen as unmanagable. | L82: 1. Memorandum of agreement (MoA) and Memorandum of understanding (MoU) to be signed between all levels of government. 2.Encourage and supply tree seedlings to communities to stop erosion,more awareness and education to be carried out on cutting of trees. 3. Divert or change flow of water to another direction. 4. Bush fires - more awareness to stop people throwing broken glass in the grassland as it naturally creates fires, collect any broken glass seen or found in the grassland.
A83: Output | B83: 34. Connectivity (linkages to other natural systems) | C83: Have the requirements for connectivity (i.e. direct linkages to other natural ecosystems) been assessed and implemented? | D83: A. The requirements for connectivity have not been assessed | E83: =VLOOKUP(D83,Responses!B314:D319,2,FALSE) -> A | F83: =VLOOKUP(E83,Responses!C314:E319,2,FALSE) -> 0 | G83: 3 | H83: 1 | I83: 3 | J83: =IF(F83="NA"," ",F83*H83) -> 0 | K83: As indicated above -please check this out re landscape connectivity role. | L83: Studies need to be undertaken to identify connectiving and linkages between natural systems
A84: Outcome | B84: 35. Condition of natural values | C84: What is the condition of the important natural values of the protected area, as compared to five to ten years ago? | D84: C. Some natural values are being partly degraded, but the most important natural values have not been significantly impacted | E84: =VLOOKUP(D84,Responses!B320:D325,2,FALSE) -> C | F84: =VLOOKUP(E84,Responses!C320:E325,2,FALSE) -> 2 | G84: 3 | H84: 1 | I84: 3 | J84: =IF(F84="NA"," ",F84*H84) -> 2 | L84: What is needed?
A85: Process | B85: 35a. Condition of natural values - assessment based on research and/or monitoring and evaluation | C85: The assessment of the condition of natural values is based on research and/or monitoring (this includes both western science and traditional methods) (Y or N) | D85: Yes | E85: =VLOOKUP(D85,Responses!$E$2:$F$5,2,FALSE) -> 1 | F85: =VLOOKUP(D85,Responses!$E$2:$F$5,2,FALSE) -> 1 | G85: 1 | H85: 1 | I85: 1 | J85: =IF(F85="NA"," ",F85*H85) -> 1 | K85: Through local observation during dry seasons by men from the village | L85: Carry out baseline survey, document and monitor the natural values
A86: Process | B86: 35b. Management programmes | C86: Specific management programmes or approaches are being implemented to address threats to natural values (Y or N) | D86: No | E86: =VLOOKUP(D86,Responses!$E$2:$F$5,2,FALSE) -> 0 | F86: =VLOOKUP(D86,Responses!$E$2:$F$5,2,FALSE) -> 0 | G86: 1 | H86: 1 | I86: 1 | J86: =IF(F86="NA"," ",F86*H86) -> 0 | K86: The natural values include the floating boulder, heart shaped lake, everlasting/living water and dragon stone and there is no management of these values. | L86: What is needed?
A87: Process | B87: 35c. Actions implemented as routine part of management | C87: Activities to maintain natural values are a routine part of protected area management (Y or N) | D87: No | E87: =VLOOKUP(D87,Responses!$E$2:$F$5,2,FALSE) -> 0 | F87: =VLOOKUP(D87,Responses!$E$2:$F$5,2,FALSE) -> 0 | G87: 1 | H87: 1 | I87: 1 | J87: =IF(F87="NA"," ",F87*H87) -> 0 | K87: An association was formed to check one of the three foot tracks from the village to Mt Wihelm | L87: Engage rangers from local organised groups to provide regular monitoring and checks
A88: Outcome | B88: 36. Condition of cultural values | C88: What is the condition of the important cultural values of the protected area, as compared to five to ten years ago? | D88: B. Some cultural values are being severely degraded | E88: =VLOOKUP(D88,Responses!B326:D331,2,FALSE) -> B | F88: =VLOOKUP(E88,Responses!C326:E331,2,FALSE) -> 1 | G88: =IF(F88="not relevant",0,3) -> 3 | H88: 1 | I88: 3 | J88: =IF(F88="NA"," ",F88*H88) -> 1 | K88: Cultural values such as the war relics of WW2 Are these historic values, rather than cultural values. Cultural values is about loss of Tok ples, failure to pass on traditional customs etc. | L88: Put a fence around the war relics when it is protetced - Get speclist people like National Museum to come and do a check on the war relics
A89: Process | B89: 36a. Condition of cultural values - assessment based on research and/or monitoring and evaluation | C89: The assessment of the condition of cultural values is based on research and/or monitoring (this includes both western science and traditional methods) (Y or N) | D89: No | E89: =VLOOKUP(D89,Responses!$E$2:$F$5,2,FALSE) -> 0 | F89: =VLOOKUP(D89,Responses!$E$2:$F$5,2,FALSE) -> 0 | G89: 1 | H89: 1 | I89: 1 | J89: 0 | L89: 1. Engage cultural study specilists to enstablishe baseline studies to set basis to carry monitoring. 2. Document oral history
A90: Process | B90: 36b. Management programmes for cultural values | C90: Specific management programmes or approaches are being implemented to address threats to cultural values (Y or N) | D90: No | E90: =VLOOKUP(D90,Responses!$E$2:$F$5,2,FALSE) -> 0 | F90: =VLOOKUP(D90,Responses!$E$2:$F$5,2,FALSE) -> 0 | G90: 1 | H90: 1 | I90: 1 | J90: 0 | K90: Cultural values such as the war relics of WW2 | L90: Establish in-situ programmes
A91: Process | B91: 36c. Actions implemented as routine part of management to protect cultural values | C91: Activities to maintain cultural values are a routine part of protected area management (Y or N) | D91: No | E91: =VLOOKUP(D91,Responses!$E$2:$F$5,2,FALSE) -> 0 | F91: =VLOOKUP(D91,Responses!$E$2:$F$5,2,FALSE) -> 0 | G91: 1 | H91: 1 | I91: 1 | J91: 0 | K91: Cultural values such as the war relics of WW2 , traditional knowledge and practises | L91: Document cultural values and oral history. Put a fence around the war relics. Promote cultural dances to the tourists. Show case culture through education programs
A92: Outcome | B92: 37. Conservation status of key plant or animal species | C92: Has the status of key species changed over the last five (5) years? | D92: A. The conservation status of key species is undesirable and has worsened over the last five years | E92: =VLOOKUP(D92,Responses!B332:D337,2,FALSE) -> A | F92: =VLOOKUP(E92,Responses!C118:E123,2,FALSE) -> 0 | G92: =IF(F92="not relevant",0,3) -> 3 | H92: 1 | I92: 3 | J92: 0 | K92: Decrease in cassowary numbers, endemic fern flowering plant | L92: 1.Community by-laws to regulate key species. 2. Have a conservation managemnt committee with mini management committee copsed of tribal groups to moitor key species. 3. Stop youths from using catapults for killing birds such as bird of paradise.
A93: Outcome | B93: 38. Conservation status of habitats | C93: Has the status of habitats changed over the last five (5) years? | D93: A. The conservation status of habitats is undesirable and has worsened over the last five years | E93: =VLOOKUP(D93,Responses!B338:D343,2,FALSE) -> A | F93: =VLOOKUP(E93,Responses!C343:E348,2,FALSE) -> 0 | G93: 3 | H93: 1 | I93: 3 | J93: 0 | K93: Grassland, Forest, Stone, Lakes and Alphine. When bush is cut for garden making then this causes the animals to migrate to other areas | L93: 1. Stop bush fires. 2. Stop cutting of trees.3. Land-use planning for small scale agriculture for settlements. 4. Community land-use agreement within the tribes.
A94: Input | B94: 39a. Level of support - CEPA | C94: What support has CEPA provided to enhance the management effectiveness of the protected area over the last five years? | D94: B. A little | E94: =VLOOKUP(D94,Responses!B344:D349,2,FALSE) -> B | F94: =VLOOKUP(E94,Responses!C344:E349,2,FALSE) -> 1 | G94: 3 | H94: 0.2 | I94: 0.6 | J94: 0.2 | K94: Awareness and workshop trainings | L94: 1. Training to understand the importanance of biodiversity and they will be equiped to go out to their communities and educate them. 2. Documentation. 3. Liase with the relevant partners, NGOs, government agencies. 4.Process to establish the area to be gazetted so that it becomes a protected area and also the community can benefit.
A95: Input | B95: 39b. Level of support – Provincial Government(s) | C95: What support has/have the provincial government(s) provided to enhance the management effectiveness of the protected area over the last five years? | D95: A. None | E95: =VLOOKUP(D95,Responses!B344:D349,2,FALSE) -> A | F95: =VLOOKUP(E95,Responses!C344:E349,2,FALSE) -> 0 | G95: 3 | H95: 0.2 | I95: 0.6 | J95: 0 | L95: 1. Establish a local conservation group and can connect with the Provincial Governement. 2. Market the tracks to the public and tourists. 3. Rangers to be employed,paid and trained by the provincial government.
A96: Input | B96: 39c. Level of support – District(s) | C96: What support has/have the District(s) provided to enhance the management effectiveness of the protected area over the last five years? | D96: A. None | E96: =VLOOKUP(D96,Responses!B344:D349,2,FALSE) -> A | F96: =VLOOKUP(E96,Responses!C344:E349,2,FALSE) -> 0 | G96: 3 | H96: 0.2 | I96: 0.6 | J96: 0 | L96: 1. Establish a local conservation group and can connect with the Provincial Governement. 2. Market the tracks to the public and tourists. 3. Rangers to be employed,paid and trained by the provincial government. 4. Some funding to be provided.
A97: Input | B97: 39d. Level of support – LLG(s) | C97: What support has/have the LGG(s) provided to enhance the management effectiveness of the protected area over the last five years? | D97: A. None | E97: =VLOOKUP(D97,Responses!B344:D349,2,FALSE) -> A | F97: =VLOOKUP(E97,Responses!C344:E349,2,FALSE) -> 0 | G97: 3 | H97: 0.2 | I97: 0.6 | J97: 0 | L97: 1. Law and order support.2. Awareness to be made. 3.Some funding to be provided.
A98: Input | B98: 39e. Level of support – NGOs | C98: What support have NGOs provided to enhance the management effectiveness of the protected area over the last five years? | D98: C. Some | E98: =VLOOKUP(D98,Responses!B344:D349,2,FALSE) -> C | F98: =VLOOKUP(E98,Responses!C344:E349,2,FALSE) -> 2 | G98: 3 | H98: 0.2 | I98: 0.6 | J98: 0.4 | K98: WCS research on wildlife studies and biodiversity. Irrwomba Founation nursery tree seedlings and distributes, conducts awareness | L98: 1. Invite NGOs to particpate in community awareness on the environment.2. Request funding to transport and plant tree seedlings.
B99: TOTAL | F99: =SUM(F3:F98) -> 54 | G99: =SUM(G3:G98) -> 224 | I99: =SUM(I3:I98) -> 155.2 | J99: =SUM(J3:J98) -> 33.5

Sheet Responses
A1: Question | H1: Condition | I1: Trend
A2: 1 | B2: select | C2: blank | D2: blank | E2: select | F2: blank | H2: Very good | I2: Increasing
B3: A. The protected area is not gazetted/approved by national or provincial government or has not been established through ‘other effective means’ | C3: A | D3: 0 | E3: Yes | F3: 1 | H3: Good | I3: Stable
B4: B. There is agreement that the protected area should be established but the process has not begun | C4: B | D4: 1 | E4: No | F4: 0 | H4: Fair | I4: Decreasing
B5: C. The protected area is in the process of being established, but the process is incomplete | C5: C | D5: 2 | E5: Not relevant | F5: NA | H5: Poor | I5: Don't know
B6: D. The protected area has been formally gazetted/approved by the national or provincial government or established through ‘other effective means’ | C6: D | D6: 3 | H6: Don't know
A8: 2 | B8: select | C8: blank | D8: blank
B9: A. No firm objectives have been agreed for the protected area to guide management | C9: A | D9: 0
B10: B. The protected area has agreed objectives, but is not managed according to these objectives | C10: B | D10: 1
B11: C. The protected area has agreed objectives, and is only partly managed according to these objectives | C11: C | D11: 2 | G11: research & monitoring
B12: D. The protected area has agreed objectives and is fully managed to meet these objectives | C12: D | D12: 3 | G12: planning documents & government data
G13: staff experience
A14: 3 | B14: select | C14: blank | D14: blank | G14: external expert opinion
B15: A. There are no regulations or customary laws or agreements for managing land and marine use and activities in the protected area | C15: A | D15: 0 | G15: customary knowledge/Community opinion
B16: B. Some regulations or customary laws for managing land/sea use and activities in the protected area exist but there are many weaknesses | C16: B | D16: 1 | G16: other (specify)
B17: C. Regulations or customary laws for managing land use and activities in the protected area exist, but there are some weaknesses or gaps | C17: C | D17: 2
B18: D. Regulations or customary laws for managing land use and activities in the protected area exist and provide an excellent basis for management | C18: D | D18: 3
G19: threat severity
A20: 3a | B20: select | C20: blank | D20: blank
B21: A. Protected area-related rules/laws/regulations are not clearly defined and documented | C21: A | D21: 0 | G21: select
B22: B. Some protected area-related rules/laws/ regulations are clearly defined and documented, but there are some important gaps | C22: B | D22: 1 | G22: Very high
B23: C. Most protected area-related rules/laws/ regulations are clearly defined and documented, with no important gaps | C23: C | D23: 2 | G23: High
B24: D. Most protected area-related rules/laws/ regulations are clearly defined and documented and anyone who wants to see/review/or know this information is able to do so | C24: D | D24: 3 | G24: Medium
G25: Low
A26: 3b | B26: select | C26: blank | D26: blank | G26: none
B27: A. The customary landowners/local community do not have any protected area-related user/access rights relating to accessing resources from the protected area (i.e. ability to hunt, fish or gather) | C27: A | D27: 0
B28: B. Some of the rights to use/access resources from the protected area are clearly defined and documented, but others are not | C28: B | D28: 1
B29: C. Most of the user/access rights to access resources from the protected area are clearly defined and documented | C29: C | D29: 2
B30: D. Most of the user/access rights to access resources from the protected area are clearly defined and documented, and anyone who wants to see or learn about this information is able to do so | C30: D | D30: 3
A32: 3c | B32: select | C32: blank | D32: blank
B33: A. Very few (less than 25%) | C33: A | D33: 0
B34: B. Some (25-50%) | C34: B | D34: 1
B35: C. Many (51-75%) | C35: C | D35: 2
B36: D. Most (more than 75%) | C36: D | D36: 3
A38: 4 | B38: select | C38: blank | D38: blank
B39: A. Planning for the land/marine uses that occur outside the protected area does not take into account the needs of the protected area and the resulting land/sea uses and policies harm the protected area | C39: A | D39: 0
B40: B. Planning for the land/marine uses that occur outside the protected area does not take into account the long-term needs of the protected area, but the resulting land/sea uses do not harm the protected area | C40: B | D40: 1
B41: C. Planning for the land/marine uses that occur outside the protected area takes into account some of the long-term needs of the protected area, and the resulting land/sea uses partially support the protected area | C41: C | D41: 2
B42: D. Planning for land/marine uses that occur outside the protected area fully takes into account the long-term needs of the protected area and seeks to support the protected area | C42: D | D42: 3
A44: 5 | B44: select | C44: blank | D44: blank
B45: A. The protected area is too small, or the boundaries are not a good shape (i.e. poor design), and this makes achieving the major management objectives very difficult | C45: A | D45: 0
B46: B. The protected area is too small, or the boundaries are not a good shape (i.e. poor design), but we are working to make it better (e.g. agreements with adjacent land/sea owners for wildlife corridors, or improving water catchment management) | C46: B | D46: 1
B47: C. The protected area size and boundaries (i.e. the design) are okay and allow us to achieve our objectives, but could be better (e.g. in relation to large-scale ecological processes or minimising threats) | C47: C | D47: 2
B48: D. Protected area size and the boundaries (i.e. the design) are very good and we can achieve our objectives | C48: D | D48: 3
B49: Not relevant | C49: NA | D49: NA
A50: 6a | B50: select | C50: blank | D50: blank
B51: A. None or only a small section of the protected area boundary is marked on the ground | C51: A | D51: 0
B52: B. Some of the protected area boundary is marked on the ground | C52: B | D52: 1
B53: C. Most of the protected area boundary is marked on the ground | C53: C | D53: 2
B54: D. All of the protected area boundary is marked on the ground (this could include a fence) | C54: D | D54: 3
A56: 6def | B56: select | C56: blank | D56: blank
B57: A. Very few (less than 25%) | C57: A | D57: 0
B58: B. Some (25-50%) | C58: B | D58: 1
B59: C. Many (51-75%) | C59: C | D59: 2
B60: D. Most (more than 75%) | C60: D | D60: 3
A62: 7 | B62: select | C62: blank | D62: blank
B63: A. There is no management plan for the protected area, or the management plan was produced a long time ago and is not being implemented | C63: A | D63: 0
B64: B. A management plan or similar is being prepared or has been prepared but is not being implemented | C64: B | D64: 1
B65: C. A management plan or similar exists but it is being partly implemented because of funding constraints or other problems | C65: C | D65: 2
B66: D. A management plan or similar exists and is being fully implemented | C66: D | D66: 3
A68: 7e | B68: select | C68: blank | D68: blank
B69: A. Structures and processes in relation to the Management Committee and related protected area decision-making are not known or understood by the protected area owners | C69: A | D69: 0
B70: B. Structures and processes in relation to the Management Committee and related protected area decision-making are little known or understood by the protected area owners | C70: B | D70: 1
B71: C. Structures and processes in relation to the Management Committee and related protected area decision-making are mostly known and understood by the protected area owners | C71: C | D71: 2
B72: D. Structures and processes in relation to the Management Committee and related protected area decision-making are fully known and understood by the protected area owners | C72: D | D72: 3
A74: 8 | B74: select | C74: blank | D74: blank
B75: A. No regular work plan exists | C75: A | D75: 0
B76: B. A regular work plan exists but only some of the activities are implemented | C76: B | D76: 1
B77: C. A regular work plan exists, and many activities are implemented | C77: C | D77: 2
B78: D. A regular work plan exists, and all activities are implemented | C78: D | D78: 3
A80: 9 | B80: select | C80: blank | D80: blank
B81: A. There is little or no information available about the protected area (e.g. critical habitats, species, ecological process and cultural values) and this makes management difficult | C81: A | D81: 0
B82: B. There is poor information about the protected area (e.g. critical habitats, species, ecological processes and cultural values) and this makes management difficult | C82: B | D82: 1
B83: C. There is good Information about the protected area (e.g. critical habitats, species, ecological processes and cultural values) for most areas of planning and decision making | C83: C | D83: 2
B84: D. There is very good Information on the protected area (e.g. critical habitats, species, ecological processes and cultural values) to support all areas of planning and decision making | C84: D | D84: 3
A86: 10 | B86: select | C86: blank | D86: blank
B87: A. There are no staff/people paid to work on the protected area, but they are ’needed | C87: A | D87: 0
B88: B. There are some paid staff/people who are responsible for important management activities, but this is inadequate to meet management needs | C88: B | D88: 1
B89: C. Paid staff numbers are good and support management of the protected area, but this is below what is required to meet management needs | C89: C | D89: 2
B90: D. Paid staff/people numbers are very good and fully meet the management needs of the protected area | C90: D | D90: 3
A92: 10a | B92: select | C92: blank | D92: blank
B93: A. There are no community members or customary landowners helping to manage the protected area, but they are needed | C93: A | D93: 0
B94: B. There are a few people to do important management activities in the protected area, but this is inadequate to meet management needs | C94: B | D94: 1
B95: C. There are some people to do important management activities in the protected area, but this is below what is required to fully meet management needs | C95: C | D95: 2
B96: D. There are plenty of people helping to manage the protected area and fully meet the management needs of the protected area | C96: D | D96: 3
A98: 11 | B98: select | C98: blank | D98: blank
B99: A. Knowledge and skills needed to manage the protected area are very poor or inadequate | C99: A | D99: 0
B100: B. Knowledge and skills are poor relative to the needs of the protected area | C100: B | D100: 1
B101: C. Knowledge and skills are good, but could be improved to better manage the protected area | C101: C | D101: 2
B102: D. Knowledge and skills to manage the protected area are very good and they meet the management needs of the area | C102: D | D102: 3
A104: 12 | B104: select | C104: blank | D104: blank
B105: A. There is no money from any source to manage the protected area | C105: A | D105: 0
B106: B. There is some money, but this is a serious problem that limits management effectiveness and should be increased to fully meet management needs | C106: B | D106: 1
B107: C. The available budget is acceptable but could be increased to fully meet management needs | C107: C | D107: 2
B108: D. The available budget is sufficient and fully meets the management needs of the protected area | C108: D | D108: 3
A110: 13 | B110: select | C110: blank | D110: blank
B111: A. There is no secure budget to manage the protected area and management is wholly reliant on outside or highly variable funding | C111: A | D111: 0
B112: B. There is very little budget security, and the protected area could not meet its management needs without outside funding | C112: B | D112: 1
B113: C. There is a reasonably secure budget for regular operation of the protected area to enable it to meet its management needs, but many initiatives are reliant on outside funding | C113: C | D113: 2
B114: D. There is a secure budget for the protected area and its management needs | C114: D | D114: 3
A116: 14 | B116: select | C116: blank | D116: blank
B117: A. Budget management is very poor and significantly undermines management effectiveness | C117: A | D117: 0
B118: B. Budget management is poor and constrains management effectiveness | C118: B | D118: 1
B119: C. Budget management is good but could be improved | C119: C | D119: 2
B120: D. Budget management is very good and meets management needs | C120: D | D120: 3
B121: Not relevant | C121: NA | D121: NA
A122: 15a | B122: select | C122: blank | D122: blank
B123: A. There are little or no equipment and facilities for management needs | C123: A | D123: 0
B124: B. There are some equipment and facilities, but these are inadequate for most management needs | C124: B | D124: 1
B125: C. There are sufficient equipment and facilities, and these enable us to undertake most management tasks, but there are some gaps | C125: C | D125: 2
B126: D. There are very good equipment and facilities, and these enable us to undertake all management tasks | C126: D | D126: 3
A128: 15b | B128: select | C128: blank | D128: blank
B129: A. There is no maintenance of equipment and facilities | C129: A | D129: 0
B130: B. There is some occasional maintenance of equipment and facilities | C130: B | D130: 1
B131: C. There is much ongoing, basic maintenance of equipment and facilities | C131: C | D131: 2
B132: D. Equipment and facilities are fully maintained | C132: D | D132: 3
B133: Not relevant | C133: NA | D133: NA
A134: 16 | B134: select | C134: blank | D134: blank
B135: A. There is no effective human capacity, resources or authority to enforce protected area legislation and regulations OR community agreements | C135: A | D135: 0
B136: B. There is some human capacity, resources or authority to enforce protected area legislation and regulations OR community agreements, but there are big gaps or deficiencies | C136: B | D136: 1
B137: C. There is acceptable human capacity, resources or authority to enforce protected area legislation and regulations OR community agreements, but there are a few gaps or deficiencies | C137: C | D137: 2
B138: D. There is excellent human capacity, resources or authority to enforce protected area legislation and regulations OR community agreements | C138: D | D138: 3
A140: 16a | B140: select | C140: blank | D140: blank
B141: A. There is no coordination | C141: A | D141: 0
B142: B. There is some effort to coordinate, but this does not work well | C142: B | D142: 1
B143: C. Coordination is good, but with some occasional problems | C143: C | D143: 2
B144: D. Coordination is very good | C144: D | D144: 3
A146: 16b | B146: select | C146: blank | D146: blank
B147: A. There are no processes for dispute resolution and hence no documentation | C147: A | D147: 0
B148: B. Some of the relevant dispute resolution processes are clearly documented or known, but others are not | C148: B | D148: 1
B149: C. Most of the relevant dispute resolution processes are clearly documented or known | C149: C | D149: 2
B150: D. Most of the relevant dispute resolution processes are clearly documented or known and anyone who wants to see and review/discuss this information is able to do so | C150: D | D150: 3
A152: 16c | B152: select | C152: blank | D152: blank
B153: A. There are no processes for dispute resolution | C153: A | D153: 0
B154: B. Dispute resolution processes are not suitable for solving protected area-related disputes | C154: B | D154: 1
B155: C. Dispute resolution processes are suitable for some protected area-related disputes, but not others | C155: C | D155: 2
B156: D. Dispute resolution processes are suitable for most or all types of protected area-related disputes | C156: D | D156: 3
A158: 16d | B158: select | C158: blank | D158: blank
B159: A. Almost never as very few people are aware of the processes and are able to use them | C159: A | D159: 0
B160: B. Some disputes are resolved (e.g. up to one-third of disputes), but most remain unresolved | C160: B | D160: 1
B161: C. Most disputes are resolved, but often there are some people who remain dissatisfied | C161: C | D161: 2
B162: D. Almost all disputes are resolved and normally all people in the dispute are satisfied with the outcome | C162: D | D162: 3
A164: 16e | B164: select | C164: blank | D164: blank
B165: A. Prosecution/dealing with law often does not follow the rules/law/regulations | C165: A | D165: 0
B166: B. Some incidents are handled according to the rules/law/regulations, but irregularities are common | C166: B | D166: 1
B167: C. Most incidents are handled according to the rules/law/regulations, but there are occasional irregularities | C167: C | D167: 2
B168: D. All incidents are properly handled according to the rules/law/regulations | C168: D | D168: 3
A170: 17 | B170: select | C170: blank | D170: blank
B171: A. Protection systems/law enforcement (patrols, permits etc) do not exist or are not effective in controlling access/ resource use by ‘outsiders’, but are required | C171: A | D171: 0
B172: B. Protection systems/law enforcement are partially effective in controlling access/ resource use by ‘outsiders’, but law breaking is still common | C172: B | D172: 1
B173: C. Protection systems/law enforcement are moderately effective in controlling access/resource use by ‘outsiders’, but there are still occasional cases of law breaking | C173: C | D173: 2
B174: D. Protection systems/law enforcement are largely or wholly effective in controlling access/resource use by ‘outsiders’, so law breaking is very rare | C174: D | D174: 3
A176: 17a | B176: select | C176: blank | D176: blank
B177: A. No – they keep quiet | C177: A | D177: 0
B178: B. Sometimes it is reported, but most times not | C178: B | D178: 1
B179: C. Most times it is reported, although sometimes not | C179: C | D179: 2
B180: D. Almost always reported in a timely manner, with very few exceptions | C180: D | D180: 3
A182: 18 | B182: select | C182: blank | D182: blank
B183: A. The working environment for staff and community members is very poor | C183: A | D183: 0
B184: B. The working environment for staff and community members is poor | C184: B | D184: 1
B185: C. The working environment for staff and community members is good, but improvements could be made | C185: C | D185: 2
B186: D. The working environment for staff and community members is very good as it is an important consideration for the protected area managers | C186: D | D186: 3
A188: 19 | B188: select | C188: blank | D188: blank
B189: A. There is no survey, inventory or research work taking place in the protected area | C189: A | D189: 0
B190: B. There is some survey, inventory or research work but it is not directed towards the needs of protected area management | C190: B | D190: 1
B191: C. There is survey, inventory or research work but it is only partly directed towards the needs of protected area management | C191: C | D191: 2
B192: D. There is a comprehensive, integrated programme of survey, inventory or research work, which is relevant to management needs | C192: D | D192: 3
A194: 20 | B194: select | C194: blank | D194: blank
B195: A. There is no monitoring and evaluation in the protected area | C195: A | D195: 0
B196: B. There is some unplanned and irregular monitoring and evaluation of the performance of management activities, but no overall strategy and/or no regular collection of results | C196: B | D196: 1
B197: C. There is agreed and implemented monitoring and evaluation, but results do not feed back into management | C197: C | D197: 2
B198: D. A good system of monitoring and evaluation exists, is well implemented and is used to adapt and improve management | C198: D | D198: 3
A200: 21 | B200: select | C200: blank | D200: blank
B201: A. There is no active resource management of critical habitats, species, ecological processes and cultural values, but it is needed | C201: A | D201: 0
B202: B. Some active management of the protected area is being implemented | C202: B | D202: 1
B203: C. Many of the requirements for active management of the protected area are being implemented but some key issues are not being addressed | C203: C | D203: 2
B204: D. Requirements for active management of the protected area are being fully implemented | C204: D | D204: 3
A206: 22 | B206: select | C206: blank | D206: blank
B207: A. There have been no efforts to consider adaptation to climate change in management of the protected area | C207: A | D207: 0
B208: B. Some initial thought has taken place about likely impacts of climate change, but his has yet to be translated into management plans or actions | C208: B | D208: 1
B209: C. Limited plans have been drawn up about how to adapt management to predicted climate change, which may or may not be implemented. | C209: C | D209: 2
B210: D. Detailed plans have been drawn up about how to adapt management to predicted climate change, and these are already being implemented. | C210: D | D210: 3
B211: Not relevant | C211: NA | D211: NA
A212: 23a | B212: select | C212: blank | D212: blank
B213: A. Preventing carbon loss has not been considered in protected area management | C213: A | D213: 0
B214: B. Preventing carbon loss has been considered in general terms, but is not reflected in management of the protected area | C214: B | D214: 1
B215: C. There are some measures to prevent carbon loss | C215: C | D215: 2
B216: D. There are several active measures in place to prevent carbon loss | C216: D | D216: 3
B217: Not relevant | C217: NA | D217: NA
A218: 23b | B218: select | C218: blank | D218: blank
B219: A. Carbon storage has not been considered in management of the protected area. | C219: A | D219: 0
B220: B. Carbon storage has been considered in general terms, but is not significantly reflected in management of the protected area | C220: B | D220: 1
B221: C. There are some measures in place to increase carbon dioxide storage | C221: C | D221: 2
B222: D. There are several active measures in place to increase carbon dioxide storage | C222: D | D222: 3
B223: Not relevant | C223: NA | D223: NA
A224: 24a | B224: select | C224: blank | D224: blank
B225: A. No ecosystem services delivered by the protected area are managed | C225: A | D225: 0
B226: B. A few ecosystem services delivered by the protected area are managed to ensure their continued delivery | C226: B | D226: 1
B227: C. Most ecosystem services delivered by the protected area are managed to ensure their continued delivery | C227: C | D227: 2
B228: D. All ecosystem services delivered by the protected area are managed to ensure their continued delivery | C228: D | D228: 3
... 111 more rows

Sheet ConditTrend (T9)
A1: Detailed assessment of values (Condition & Trend) (Table 9)
A2: Key value | B2: Condition | C2: Trend | D2: Justification for the rating | E2: Ways to improve the value | G2: Condition
A3: Values will be inserted from Table 3 | B3: Insert Score | C3: Insert Score | D3: Insert text to explain the score or rating that was selected | G3: VG
B4: Select from pull down menu | C4: Select from pull down menu | G4: G
A5: ='Key Values (T3)'!B4 -> Biodiversity | B5: Very good | C5: Stable | D5: Local knowledge that the biodiversity is in good state | E5: Protect alphine grassland and plains, plants and wildlife | G5: F
A6: Floating stone | B6: Very good | C6: Stable | D6: Local knowledged that the floating stone is in good condition | E6: Area to be protected under conservation - certain restrictions to be put in place - distance - control glass thrown in the grassland that causes bush fires | G6: P
A7: Dragon stone (teme kombuglo) | B7: Very good | C7: Stable | D7: Local knowledged that the dragone stone is in good condition | E7: Area to be protected under conservation - certain restrictions to be put in place - distance - control glass thrown in the grassland that causes bush fires
A8: Heart Lake (Nigltekepangua) | B8: Fair | C8: Don't know | D8: Local knowledge of some changes- plant grew in the lake and the color was red previously - but now the plant has died and color has changed to normal water color as when more people frequent the area | E8: Lessen number of people going to the lake-bush fires to be controlled - will increase wild ducks | G8: DK
A9: War relics | B9: Poor | C9: Decreasing | D9: The relics have been moved by the youths of the village. There have been disputes over the reclics. The youths believe that there are arms there left by the Japnese or Germans during WW2. So what is the dispute? | E9: Put a boundary around the area to protect relics - engage National Museum Centre | G9: Score
A10: Living or everlasting water (Kornumbun) | B10: Good | C10: Stable | D10: Sacred site so only chosen people can go there. From up close the water is covered by boulders and there is a small opening for the water to flow out. Wild ducks can be found here. Water drunk from the site can make one live longer, stay younger and it has healing properties as well. | E10: Lessen number of people going to the lake-bush fires to be controlled- stop hunting near the area - re-direct the track away from the water | G10: I
G14: S
G15: D
G16: DK

Sheet Recomm (T10)
A1: Recommendations (Table 10)
A2: Recommendations | B2: 1 | C2: 2 | D2: 3 | E2: 4 | F2: 5 | G2: 6
A3: ='Attributes (T1)'!C10 -> Kuglkane Ranges Proteced Zone | B3: CEPA as the national government agency to provide, support and work together with the local communities to gazette the proposed area. | C3: 3 Arms of government (Chimbu Provincial govt, Kundiawa Gembolg, District Development Authority -under MP leadership | D3: To establish and support sub committees for each of the 6 wards to lead conservation work on the ground.

Sheet Str & Challenges (T11)
A1: Strengths and Challenges (Table 11)
A2: ='Attributes (T1)'!C10 -> Kuglkane Ranges Proteced Zone | B2: ='Attributes (T1)'!C10 -> Kuglkane Ranges Proteced Zone
A3: Strengths | B3: Challenges
A4: The local communities from the six wards are fully in support of the idea of conservation. They are passionate about their environment and want it to be managed sustainably to benefit the current population and their children. | B4: Maintaining the values of their protected area against the emerging market demands e.g. the flowering fern plant which is in demand and is bought at a very high price.
A5: The proposed area boundary is adjacent to the current Mt Wihelm Protected Area so there is a potential to extend the Mt Wihelm PA boundary into the Kuglkane Ranges Protected Zone. | B5: To get the different landowning clans to come to an agreement for conservation. | C5: Clarify the challenge -does it mean that some prefer alternative forms of development??? Just need to clarify this.
A6: There are four existing walking tracks that can be fully recognised and utilised by tourists. This can generate income for the locals and be a coservation incentive. | B6: Get the four tracks fully recognised by tour operators. | C6: To someone who is unfamiliar with the site, this is not clear. So please write a few more details. What is the challenge - lack of money, lack of willingness ????
A7: Natural values remain in a good condition????
A8: Cultural values are important and are passed onto future generations
A9: Customary rules and agreements are in place and this helps to maintain the natural and cultural values of the area.
A11: Please go through the text and try to select a few more strengths.

Sheet GEF METT
A1: Tracking Tool for GEF-6 Biodiversity Projects
A4: GEF:6 Objective 1: Catalyzing Sustainability of Protected Area Systems
A5: SECTION II: Management Effectiveness Tracking Tool for Protected Areas
A6: Note: Please complete the management effectiveness tracking tool for EACH protected area that is the target of the GEF intervention to improve management effectiveness and create a new worksheet for each. Structure and content of the Tracking Tool - Objective 1. Section II: The Tracking Tool has five data sheets: Data Sheet 1: Records details of the assessment and some basic information about the site, such as name, size and location etc. Data Sheet 2: Provides a specific list of threats that the project is addressing. Data Sheet 3: Condition of biodiversity in the protected area. Data Sheet 4: Assessment Form: the assessment is structured around 30 questions presented in table format which includes three columns for recording details of the assessment, all of which should be completed. Data Sheet 5: Datasources and methods on which above assessments of condition of biodiversity in the protected area in Question 30 are based.
A7: PLEASE NOTE THAT THIS TOOL IS FOR USE ONLY IN GEF-6 PROJECTS
A9: Data Sheet 1: Reporting Progress at Protected Area Sites
A10: Questions | B10: Please indicate your answers here | G10: Notes
B11: Project Start-up | E11: Midterm | F11: Project Completion
A12: Name, affiliation and contact details for person responsible for completing the METT (email etc.) | B12: ='Attributes (T1)'!C75 -> Alu Kaiye | G12: Please insert from Attributes Table 1, Q28a
A13: Date assessment carried out | B13: ='Attributes (T1)'!C81 -> 28th - 30th September 2021 | G13: Month DD, YYYY (e.g., May 12, 2010)
A14: Name of protected area | B14: ='Attributes (T1)'!C10 -> Kuglkane Ranges Proteced Zone | E14: ='[2]METT4 PA attributes'!C5 -> 0 | F14: ='[2]METT4 PA attributes'!D5 -> 0
A15: WDPA site code (these codes can be found on www.protectedplanet.net) | B15: ='[2]METT4 PA attributes'!B6 -> xxx
A16: Country | B16: ='[2]METT4 PA attributes'!B3 -> Papua New Guinea
A17: Location of protected area (province and if possible map reference) | B17: ='Attributes (T1)'!C6 -> Simbu
A18: Date of establishment | B18: ='Attributes (T1)'!C13 -> The site has not been formally established
A19: Ownership details (please choose 1-4) | B19: ='Attributes (T1)'!C25 -> Customary landowners | G19: 1: State 2: Private 3: Community 4: Other
A20: Management Authority | B20: ='Attributes (T1)'!C31 -> Customary landowners
A21: Size of protected area (ha) | B21: ='Attributes (T1)'!C15 -> Not known
A22: Number of Permanent staff | B22: ='Attributes (T1)'!C37 -> No, since it is a proposed area there are no staff
A23: Number of Temporary staff | B23: ='Attributes (T1)'!C38 -> No, since it is a proposed area there are no staff
A24: Annual budget (US$) for recurrent (operational) funds – excluding staff salary costs | B24: ='Attributes (T1)'!C41 -> No budget received from the government
A25: Annual budget (US$) for project or other supplementary funds – excluding staff salary costs | B25: ='Attributes (T1)'!C44 -> Nil
A26: What are the main values for which the area is designated | B26: ='Attributes (T1)'!C48 -> Biodiversity | G26: Add other values listed in attributes,Table 1, Q22.
A27: List the two primary protected area management objectives in below:
A28: Management objective 1 | B28: ='Attributes (T1)'!C55 -> Protect biodiveristy ; important plants,animals and wildlife (eg; butterfly and orchids)
A29: Management objective 2 | B29: ='Attributes (T1)'!C56 -> Protect forest for cultural places and practises
A30: No. of people involved in completing assessment | B30: ='Attributes (T1)'!C64 -> 6
A31: Including: (please choose 1-8) | G31: 1: PA manager 2: PA staff 3: Other PA agency staff 4: Donors 5: NGOs 6: External experts 7: Local community 8: Other
A35: Data Sheet 2: Key Biodiversity Indicators Used in This Protected Area
A36: At project start-up, identify and list up to five key biodiversity indicators that are monitored on a regular basis in the protected area; these indicators can relate to any/all trophic levels OR using other indicators. For each identified indicator, provide the current (project start-up) status of that indicator in numerical terms or with a short description (see examples below), as appropriate. The examples are only illustrative and the protected area manager should use the indicators that currently are being monitored and/or will be monitored. At project midterm and at project completion, provide updates on the status of the same indicator(s) identified at project start. The overall condition of biodiversity -- based on the status of the indicator(s) identified here -- will be reported on in Question 30 in Data Sheet 4 (METT Assessment Form). Therefore the inputs here require focused analysis to assess whether trends are positive, negative or neutral.
A37: Indicator | B37: Project Start-up | E37: Midterm | F37: Project Completion | G37: Comments (optional)
A38: Example Indicator 1: Degree of soil compaction and/or erosion, as indicated by test sites compared with exclosures Example Indicator 2: Average total area of grassland burnt by fire per year, as indicated by plotting GPS points following fire events Example Indicator 3: Total area deforested or with forest significantly degraded, as indicated by satellite imagery Example Indicator 4: Estimated population of a key herbivore species as indicated by dung counts Example Indicator 5: Estimated population of a key carnivore species as indicated by camera traps | B38: 23 hectares | E38: 35 hectares | F38: 50 hectares
A39: Indicator 1
A40: Indicator 2
A41: Indicator 3
A42: Indicator 4
A43: Indicator 5
A47: Data Sheet 3: Protected Areas Threats
A48: Please describe each threat that the project is directly addressing and provide the threat reduction indicator that the project is using from the project logframe to measure progress in reducing each threat. An example is provided.
A49: Questions | B49: Please enter your answers in this column. | G49: Comments (optional)
A50: Example Threat | B50: Illegal hunting for bushmeat
A51: Threat reduction indicator | B51: Quantity of bushmeant coming from Xanadu PA sold in markets
A52: Baseline status | B52: At the start of project bushmeat sales in markets are 20 tons/per year (baseline upon which progress will be measured).
A53: Target | B53: Quantities of bushmeat coming from "Xanadu Protected Area" sold in markets are reduced by 70% over the project period
A54: Midterm status | B54: Bushmeat sales are recorded to be 14 tons per year.
A55: End of project status | B55: Bushmeat sales are recorded to be 12 tons per year.
A56: Threat 1
A57: Threat reduction indicator
A58: Baseline status
A59: Target
A60: Midterm status
A61: End of project status
A62: Threat 2
A63: Threat reduction indicator
A64: Baseline status
A65: Target
A66: Midterm status
A67: End of project status
A71: Data Sheet 4: METT Assessment Form
A72: Please select a score from the drop-down list for each question. If a question is not applicable, then do not select a score and enter "N/A" in the comments space along with a brief explanation.
A73: Questions | B73: Project start-up | C73: Justification | D73: Actions to improve management | E73: Midterm | F73: Project Completion | G73: Criteria and Scores
A74: 1. Legal status: Does the protected area have legal status (or in the case of private reserves is covered by a covenant or similar)? | B74: ='Scorecard (T8)'!F3 -> 0 | C74: ='Scorecard (T8)'!K3 -> Area is outside of Mt Wilhelm National Park. The community are now deciding to protect the area. | D74: ='Scorecard (T8)'!L3 -> So what needs to happen next? | G74: 0: The protected area is not gazetted/covenanted 1: There is agreement that the protected area should be gazetted/covenanted but the process has not yet begun 2: The protected area is in the process of being gazetted/covenanted but the process is still incomplete (includes sites designated under international conventions, such as Ramsar, or local/traditional law such as community conserved areas, which do not yet have national legal status or covenant) 3: The protected area has been formally gazetted/covenanted
A75: Comments and Next Steps
A76: 2. Protected area regulations: Are appropriate regulations in place to control land use and activities (e.g. hunting)? | B76: ='Scorecard (T8)'!F4 -> 0 | C76: ='Scorecard (T8)'!K4 -> It is not a gazetted protected area yet. | D76: ='Scorecard (T8)'!L4 -> So what needs to happen next? | G76: 0: There are no regulations for controlling land use and activities in the protected area 1: Some regulations for controlling land use and activities in the protected area exist but these are major weaknesses 2: Regulations for controlling land use and activities in the protected area exist but there are some weaknesses or gaps 3: Regulations for controlling inappropriate land use and activities in the protected area exist and provide an excellent basis for management
A77: Comments and Next Steps
A78: 3. Law Enforcement: Can staff (i.e. those with responsibility for managing the site) enforce protected area rules well enough? | B78: ='Scorecard (T8)'!F39 -> 0 | C78: ='Scorecard (T8)'!K39 -> Now it is not a protected area but later when it is protected then human training on conservation will have to be conducted. This actually refers to existing rules that are in place relating to cutting of trees, hunting etc - so can relevant people enforce these rules? | D78: ='Scorecard (T8)'!L39 -> What is needed? | G78: 0: The staff have no effective capacity/resources to enforce protected area legislation and regulations 1: There are major deficiencies in staff capacity/resources to enforce protected area legislation and regulations (e.g. lack of skills, no patrol budget, lack of institutional support) 2: The staff have acceptable capacity/resources to enforce protected area legislation and regulations but some deficiencies remain 3: The staff have excellent capacity/resources to enforce protected area legislation and regulations
A79: Comments and Next Steps
A80: 4. Protected area objectives: Is management undertaken according to agreed objectives? | B80: ='Scorecard (T8)'!F4 -> 0 | C80: ='Scorecard (T8)'!K4 -> It is not a gazetted protected area yet. | D80: ='Scorecard (T8)'!L4 -> So what needs to happen next? | G80: 0: No firm objectives have been agreed for the protected area 1: The protected area has agreed objectives, but is not managed according to these objectives 2: The protected area has agreed objectives, but is only partially managed according to these objectives 3: The protected area has agreed objectives and is managed to meet these objectives
A81: Comments and Next Steps
A82: 5. Protected area design: Is the protected area the right size and shape to protect species, habitats, ecological processes and water catchments of key conservation concern? | B82: ='Scorecard (T8)'!F13 -> 3 | C82: 1 | D82: ='Scorecard (T8)'!L13 -> What is needed? | G82: 0: Inadequacies in protected area design mean achieving the major objectives of the protected area is very difficult 1: Inadequacies in protected area design mean that achievement of major objectives is difficult but some mitigating actions are being taken (e.g. agreements with adjacent land owners for wildlife corridors or introduction of appropriate catchment management) 2: Protected area design is not significantly constraining achievement of objectives, but could be improved (e.g. with respect to larger scale ecological processes) 3: Protected area design helps achievement of objectives; it is appropriate for species and habitat conservation; and maintains ecological processes such as surface and groundwater flows at a catchment scale, natural disturbance patterns etc
A83: Comments and Next Steps
A84: 6. Protected area boundary demarcation: Is the boundary known and demarcated? | B84: ='Scorecard (T8)'!F14 -> 0 | C84: ='Scorecard (T8)'!K14 -> Using natural features as boundaries such as rivers and ranges | D84: ='Scorecard (T8)'!L14 -> GPS coordinates to be used as marke the boundary clearly FIX this | G84: 0: The boundary of the protected area is not known by the management authority or local residents/neighbouring land users 1: The boundary of the protected area is known by the management authority but is not known by local residents/neighbouring land users 2: The boundary of the protected area is known by both the management authority and local residents/neighbouring land users but is not appropriately demarcated 3: The boundary of the protected area is known by the management authority and local residents/neighbouring land users and is appropriately demarcated
A85: Comments and Next Steps
A86: 7. Management plan: Is there a management plan and is it being implemented? | B86: ='Scorecard (T8)'!F22 -> 0 | C86: ='Scorecard (T8)'!K22 -> 0 | D86: ='Scorecard (T8)'!L22 -> What is needed? | G86: 0: There is no management plan for the protected area 1: A management plan is being prepared or has been prepared but is not being implemented 2: A management plan exists but it is only being partially implemented because of funding constraints or other problems 3: A management plan exists and is being implemented
A87: Comments and Next Steps
A88: 7.a Planning process: The planning process allows adequate opportunity for key stakeholders to influence the management plan | B88: ='Scorecard (T8)'!F23 -> 0 | C88: ='Scorecard (T8)'!K23 -> 0 | D88: ='Scorecard (T8)'!L23 -> What is needed? | G88: 0: No 1: Yes
A89: Comments and Next Steps
A90: 7.b Planning process: There is an established schedule and process for periodic review and updating of the management plan | B90: ='Scorecard (T8)'!F24 -> 0 | C90: ='Scorecard (T8)'!K24 -> 0 | D90: ='Scorecard (T8)'!L24 -> What is needed? | G90: 0: No 1: Yes
A91: Comments and Next Steps
A92: 7.c Planning process: The results of monitoring, research and evaluation are routinely incorporated into planning | G92: 0: No 1: Yes
A93: Comments and Next Steps
A94: 8. Regular work plan: Is there a regular work plan and is it being implemented | B94: ='Scorecard (T8)'!F29 -> 0 | C94: ='Scorecard (T8)'!K29 -> 0 | D94: ='Scorecard (T8)'!L29 -> What is needed? | G94: 0: No regular work plan exists 1: A regular work plan exists but few of the activities are implemented 2: A regular work plan exists and many activities are implemented 3: A regular work plan exists and all activities are implemented
A95: Comments and Next Steps
A96: 9. Resource inventory: Do you have enough information to manage the area? | B96: ='Scorecard (T8)'!F30 -> 0 | C96: ='Scorecard (T8)'!K30 -> Some informaion on lakes, stones, plants,animals | D96: ='Scorecard (T8)'!L30 -> More biodiversty and cultural studies to be carried out | G96: 0: There is little or no information available on the critical habitats, species and cultural values of the protected area 1: Information on the critical habitats, species, ecological processes and cultural values of the protected area is not sufficient to support planning and decision making 2: Information on the critical habitats, species, ecological processes and cultural values of the protected area is sufficient for most key areas of planning and decision making 3: Information on the critical habitats, species, ecological processes and cultural values of the protected area is sufficient to support all areas of planning and decision making
A97: Comments and Next Steps
A98: 10. Protection systems: Are systems in place to control access/resource use in the protected area? | B98: ='Scorecard (T8)'!F46 -> 0 | C98: ='Scorecard (T8)'!K46 -> No rangers at the moment - not a protected area yet - | D98: ='Scorecard (T8)'!L46 -> Need to have rangers based at the site to patrol the proposed protected area. | G98: 0: Protection systems (patrols, permits etc) do not exist or are not effective in controlling access/resource use 1: Protection systems are only partially effective in controlling access/resource use 2: Protection systems are moderately effective in controlling access/resource use 3: Protection systems are largely or wholly effective in controlling access/ resource use
A99: Comments and Next Steps
A100: 11. Research: Is there a programme of management-orientated survey and research work? | B100: ='Scorecard (T8)'!F51 -> 0 | C100: ='Scorecard (T8)'!K51 -> Currently not a Protected Area | D100: ='Scorecard (T8)'!L51 -> Proper land use and resource management planning needed | G100: 0: There is no survey or research work taking place in the protected area 1: There is a small amount of survey and research work but it is not directed towards the needs of protected area management 2: There is considerable survey and research work but it is not directed towards the needs of protected area management 3:There is a comprehensive, integrated programme of survey and research work, which is relevant to management needs
A101: Comments and Next Steps
A102: 12. Resource management: Is active resource management being undertaken? | G102: 0: Active resource management is not being undertaken 1: Very few of the requirements for active management of critical habitats, species, ecological processes and cultural values are being implemented 2: Many of the requirements for active management of critical habitats, species, ecological processes and, cultural values are being implemented but some key issues are not being addressed 3: Requirements for active management of critical habitats, species, ecological processes and, cultural values are being substantially or fully implemented
A103: Comments and Next Steps
A104: 13. Staff numbers: Are there enough people employed to manage the protected area? | B104: ='Scorecard (T8)'!F31 -> 0 | C104: ='Scorecard (T8)'!K31 -> 0 | D104: ='Scorecard (T8)'!L31 -> What is needed? | G104: 0: There are no staff 1: Staff numbers are inadequate for critical management activities 2: Staff numbers are below optimum level for critical management activities 3: Staff numbers are adequate for the management needs of the protected area
A105: Comments and Next Steps
A106: 14. Staff training: Are staff adequately trained to fulfill management objectives? | B106: ='Scorecard (T8)'!F33 -> 0 | C106: ='Scorecard (T8)'!K33 -> 0 | D106: ='Scorecard (T8)'!L33 -> Local knowledge is there but need scientifc knowledge to be taught to the local people - what in particular? | G106: 0: Staff lack the skills needed for protected area management 1: Staff training and skills are low relative to the needs of the protected area 2: Staff training and skills are adequate, but could be further improved to fully achieve the objectives of management 3: Staff training and skills are aligned with the management needs of the protected area
A107: Comments and Next Steps
A108: 15. Current budget: Is the current budget sufficient? | B108: ='Scorecard (T8)'!F34 -> 0 | C108: ='Scorecard (T8)'!K34 -> 0 | D108: ='Scorecard (T8)'!L34 -> What is needed? | G108: 0: There is no budget for management of the protected area 1: The available budget is inadequate for basic management needs and presents a serious constraint to the capacity to manage 2: The available budget is acceptable but could be further improved to fully achieve effective management 3: The available budget is sufficient and meets the full management needs of the protected area
A109: Comments and Next Steps
A110: 16. Security of budget: Is the budget secure? | B110: ='Scorecard (T8)'!F35 -> 0 | C110: ='Scorecard (T8)'!K35 -> 0 | D110: ='Scorecard (T8)'!L35 -> What is needed? | G110: 0: There is no secure budget for the protected area and management is wholly reliant on outside or highly variable funding 1: There is very little secure budget and the protected area could not function adequately without outside funding 2: There is a reasonably secure core budget for regular operation of the protected area but many innovations and initiatives are reliant on outside funding 3: There is a secure budget for the protected area and its management needs
A111: Comments and Next Steps
A112: 17. Management of budget: Is the budget managed to meet critical management needs? | B112: ='Scorecard (T8)'!F36 -> 0 | C112: ='Scorecard (T8)'!K36 -> This response is probably not relevant - as there is no budget - consider changing. | D112: ='Scorecard (T8)'!L36 -> What is needed? | G112: 0: Budget management is very poor and significantly undermines effectiveness (e.g. late release of budget in financial year) 1: Budget management is poor and constrains effectiveness 2: Budget management is adequate but could be improved 3: Budget management is excellent and meets management needs
A113: Comments and Next Steps
A114: 18. Equipment: Is equipment sufficient for management needs? | B114: ='Scorecard (T8)'!F37 -> 0 | C114: ='Scorecard (T8)'!K37 -> 0 | D114: ='Scorecard (T8)'!L37 -> What is needed? | G114: 0: There are little or no equipment and facilities for management needs 1: There are some equipment and facilities but these are inadequate for most management needs 2: There are equipment and facilities, but still some gaps that constrain management 3: There are adequate equipment and facilities
A115: Comments and Next Steps
A116: 19. Maintenance of equipment: Is equipment adequately maintained? | B116: ='Scorecard (T8)'!F38 -> 0 | C116: ='Scorecard (T8)'!K38 -> This response is probably not relevant - as there is equipment etc - consider changing. | D116: ='Scorecard (T8)'!L38 -> What is needed? | G116: 0: There is little or no maintenance of equipment and facilities 1: There is some ad hoc maintenance of equipment and facilities 2: There is basic maintenance of equipment and facilities 3: Equipment and facilities are well maintained
A117: Comments and Next Steps
A118: 20. Education and awareness: Is there a planned education programme linked to the objectives and needs? | B118: ='Scorecard (T8)'!F57 -> 2 | C118: ='Scorecard (T8)'!K57 -> During world environment day - community schools- tree planting activities.The district - sales of seedlings, herbs and various plants on display -awareness on tree planting to celebrate the day | D118: ='Scorecard (T8)'!L57 -> Community program to run these environemental awareness as well which will disseminate and educate more information to the whole community | G118: 0: There is no education and awareness programme 1: There is a limited and ad hoc education and awareness programme 2: There is an education and awareness programme but it only partly meets needs and could be improved 3: There is an appropriate and fully implemented education and awareness programme
A119: Comments and Next Steps
A120: 21. Planning for land and water use: Does land and water use planning recognise the protected area and aid the achievement of objectives? | B120: ='Scorecard (T8)'!F9 -> 0 | C120: ='Scorecard (T8)'!K9 -> Animals are hunted for food and to sustain the livelihood of the people in the community. However, the rules and regulations of the proposed protected area are not fully understood by the community (SO WHAT? - are others hunting in the proposed PA???). Also plants are taken by tourists, locals or other people as they do not consider the rules of Mt Wilhelm. | D120: ='Scorecard (T8)'!L9 -> What is needed? | G120: 0: Adjacent land and water use planning does not take into account the needs of the protected area and activities/policies are detrimental to the survival of the area 1: Adjacent land and water use planning does not takes into account the long term needs of the protected area, but activities are not detrimental the area 2: Adjacent land and water use planning partially takes into account the long term needs of the protected area 3: Adjacent land and water use planning fully takes into account the long term needs of the protected area
A121: Comments and Next Steps
A122: 21a. Land and water planning for habitat conservation: Planning and management in the catchment or landscape containing the protected area incorporates provision for adequate environmental conditions (e.g. volume, quality and timing of water flow, air pollution levels etc) to sustain relevant habitats. | B122: ='Scorecard (T8)'!F10 -> 0 | C122: ='Scorecard (T8)'!K10 -> 0 | D122: ='Scorecard (T8)'!L10 -> What is needed? | G122: 0: No 1: Yes
A123: Comments and Next Steps
A124: 21b. Land and water planning for connectivity: Management of corridors linking the protected area provides for wildlife passage to key habitats outside the protected area (e.g. to allow migratory fish to travel between freshwater spawning sites and the sea, or to allow animal migration). | B124: ='Scorecard (T8)'!F11 -> 0 | C124: ='Scorecard (T8)'!K11 -> Can you please check this answer. Isn't a prime puirpose of the proposed PA to extend the area given protection and to form a landscape corridor - hence planning for connectivity is very important here - BUT I may have this wrong - please check. | D124: ='Scorecard (T8)'!L11 -> 0 | G124: 0: No 1: Yes
A125: Comments and Next Steps
A126: 21c. Land and water planning for ecosystem services and species conservation: "Planning adresses ecosystem-specific needs and/or the needs of particular species of concern at an ecosystem scale (e.g. volume, quality and timing of freshwater flow to sustain particular species, fire management to maintain savannah habitats etc.)" | B126: ='Scorecard (T8)'!F12 -> 0 | C126: ='Scorecard (T8)'!K12 -> 0 | D126: ='Scorecard (T8)'!L12 -> What is needed? | G126: 0: No 1: Yes
A127: Comments and Next Steps
A128: 22. State and commercial neighbours:Is there co-operation with adjacent land and water users? | B128: ='Scorecard (T8)'!F58 -> 0 | C128: ='Scorecard (T8)'!K58 -> 0 | D128: ='Scorecard (T8)'!L58 -> What is needed? | G128: 0: There is no contact between managers and neighbouring official or corporate land and water users 1: There is contact between managers and neighbouring official or corporate land and water users but little or no cooperation 2: There is contact between managers and neighbouring official or corporate land and water users, but only some co-operation 3: There is regular contact between managers and neighbouring official or corporate land and water users, and substantial co-operation on management
A129: Comments and Next Steps
A130: 23. Indigenous people: Do indigenous and traditional peoples resident or regularly using the protected area have input to management decisions? | B130: ='Scorecard (T8)'!F62 -> 3 | C130: ='Scorecard (T8)'!K62 -> Clan leaders, leaders and representaives from each clan represetning clans on land issues - man are the ones that do the most decisions - this days women empowerment (NOT sure what this means - can you please explain the role of women in decision making) | D130: ='Scorecard (T8)'!L62 -> include more in decision and strengthen this - women empowerment | G130: 0: Indigenous and traditional peoples have no input into decisions relating to the management of the protected area 1: Indigenous and traditional peoples have some input into discussions relating to management but no direct role in management 2: Indigenous and traditional peoples directly contribute to some relevant decisions relating to management but their involvement could be improved 3: Indigenous and traditional peoples directly participate in all relevant decisions relating to management, e.g. co-management
A131: Comments and Next Steps
A132: 24. Local communities: Do local communities resident or near the protected area have input to management decisions? | B132: ='Scorecard (T8)'!F63 -> 1 | C132: ='Scorecard (T8)'!K63 -> People residing outside from their villages still have the right to make decisions for their land land as rightful customary land owners. Girls are married outside but if they are next of kin then they can make decisions- Men are the common decision makers, but this depends on each family. | D132: ='Scorecard (T8)'!L63 -> 0 | G132: 0: Local communities have no input into decisions relating to the management of the protected area 1: Local communities have some input into discussions relating to management but no direct role in management 2: Local communities directly contribute to some relevant decisions relating to management but their involvement could be improved 3: Local communities directly participate in all relevant decisions relating to management, e.g. co-management
A133: Comments and Next Steps
A134: 24 a. Impact on communities: There is open communication and trust between local and/or indigenous people, stakeholders and protected area managers | B134: ='Scorecard (T8)'!F70 -> 0 | C134: ='Scorecard (T8)'!K70 -> UNDP GEF through Tony | D134: ='Scorecard (T8)'!L70 -> Communicated through Tony | G134: 0: No 1: Yes
A135: Comments and Next Steps
A136: 24 b. Impact on communities: Programmes to enhance community welfare, while conserving protected area resources, are being implemented | B136: ='Scorecard (T8)'!F76 -> 0 | C136: ='Scorecard (T8)'!K76 -> Get the ???? In Q32c there is a list of all the projects that have been implemented and many of these would improve community welfare. Does this question need to be reconsidered? | D136: ='Scorecard (T8)'!L76 -> Increase PA boundary so that it covers all wards so that it benefits the communities and improves livelihoods of the people. | G136: 0: No 1: Yes
A137: Comments and Next Steps
A138: 24 c. Impact on communities: Local and/or indigenous people actively support the protected area | B138: ='Scorecard (T8)'!F77 -> 1 | C138: ='Scorecard (T8)'!K77 -> Particpation and interest of the local community in their attendance of the worknshop now - toursim activities to benefit the local community | D138: ='Scorecard (T8)'!L77 -> What is needed? | G138: 0: No 1: Yes
A139: Comments and Next Steps
A140: 25. Economic benefit: Is the protected area providing economic benefits to local communities, e.g. income, employment, payment for environmental services? | B140: ='Scorecard (T8)'!F78 -> 0 | C140: ='Scorecard (T8)'!K78 -> Improve boundary - Equal engagement of rangers from all areas | D140: ='Scorecard (T8)'!L78 -> Improve boundary - Equal engagement of rangers from all the wards - market foot tracks to tourists so that they can choose | G140: 0: The protected area does not deliver any economic benefits to local communities 1: Potential economic benefits are recognised and plans to realise these are being developed 2: There is some flow of economic benefits to local communities 3: There is a major flow of economic benefits to local communities from activities associated with the protected area
A141: Comments and Next Steps
A142: 26. Monitoring and evaluation: Are management activities monitored against performance? | B142: ='Scorecard (T8)'!F50 -> 0 | C142: ='Scorecard (T8)'!K50 -> 0 | D142: ='Scorecard (T8)'!L50 -> What is needed? | G142: 0: There is no monitoring and evaluation in the protected area 1: There is some ad hoc monitoring and evaluation, but no overall strategy and/or no regular collection of results 2: There is an agreed and implemented monitoring and evaluation system but results do not feed back into management 3: A good monitoring and evaluation system exists, is well implemented and used in adaptive management
A143: Comments and Next Steps
A144: 27. Visitor facilities: Are visitor facilities adequate? | B144: ='Scorecard (T8)'!F61 -> 2 | C144: ='Scorecard (T8)'!K61 -> Guest house facilities in good condition - cultural dances -tradtional food cooked and served. ARE these in the PA -a previous question said there were no facilities? | D144: ='Scorecard (T8)'!L61 -> 0 | G144: 0: There are no visitor facilities and services despite an identified need 1: Visitor facilities and services are inappropriate for current levels of visitation 2: Visitor facilities and services are adequate for current levels of visitation but could be improved 3: Visitor facilities and services are excellent for current levels of visitation
A145: Comments and Next Steps
A146: 28. Commercial tourism operators: Do commercial tour operators contribute to protected area management? | B146: ='Scorecard (T8)'!F59 -> 2 | C146: ='Scorecard (T8)'!K59 -> A small payment is given to the carrires who carry the clothe and, some valuable things given by the tourists - 4 tracks in total- 3 tracks not formally recogized but only 1 track fomally recognised which is Mt Wilhem | D146: ='Scorecard (T8)'!L59 -> Formalise the 3 current tracks | G146: 0: There is little or no contact between managers and tourism operators using the protected area 1: There is contact between managers and tourism operators but this is largely confined to administrative or regulatory matters 2: There is limited co-operation between managers and tourism operators to enhance visitor experiences and maintain protected area values 3: There is good co-operation between managers and tourism operators to enhance visitor experiences, and maintain protected area values
A147: Comments and Next Steps
A148: 29. Fees: If fees (i.e. entry fees or fines) are applied, do they help protected area management? | B148: ='Scorecard (T8)'!F60 -> 0 | C148: ='Scorecard (T8)'!K60 -> 0 | D148: ='Scorecard (T8)'!L60 -> What is needed? | G148: 0: Although fees are theoretically applied, they are not collected 1: Fees are collected, but make no contribution to the protected area or its environs 2: Fees are collected, and make some contribution to the protected area and its environs 3: Fees are collected and make a substantial contribution to the protected area and its environs
A149: Comments and Next Steps
A150: 30. What is the overall condition of the biodiversity of the protected area in terms of the indicator(s) indicated in Data Sheet 2 above? | B150: ='Scorecard (T8)'!F84 -> 2 | C150: ='Scorecard (T8)'!K84 -> 0 | D150: ='Scorecard (T8)'!L84 -> What is needed? | G150: 0: Severely degraded 1: Partially degraded 2: Mostly intact 3: Completely intact
A151: Comments and Next Steps | B151: Please complete Data Sheet 5 for Question 30 that follows below.
A152: Total METT Score (automatically calculated) | B152: =SUM(B74:B151) -> 16 | E152: =SUM(E74:E151) -> 0 | F152: =SUM(F74:F151) -> 0 | G152: Provide comments here (optional)
A156: Data Sheet 5: Data sources and methods used to assess the present overall condition of biodiversity in the protected area (METT Question 30, above).
A157: Summarize the data sources used to track the indicator(s) given in Data Sheet 2, and outline the method for assessing the indicator results. The indicator(s) will automatically appear in this table once entered in Data Sheet 2. This table (Data Sheet 5) should be updated, as appropriate, during each application of the METT. An example is provided.
A158: Indicator | B158: Summarize the data sources used to track this indicator | F158: Outline the method used for assessing the indicator results and what these show about the condition of biodiversity
A159: Example: Average total area of grassland burnt by fire per year | B159: Records of fire events during the period of monitoring - showing the extent of the area burnt, as recorded by park rangers using hand-held GPS devices to plot boundaries of area and calculate total number of hectares | F159: - Observation of overall trend – more, less or same amount of fire disturbance - Reference to scientific literature on ecosystem types to understand optimum fire intervals - Examination of fire record to determine historical trends in fires in the PA - Analysis of pattern to determine fire frequency in particular parts of PA in and beyond monitoring period
A160: =A39 -> Indicator 1
A161: =A40 -> Indicator 2
A162: =A41 -> Indicator 3
A163: =A42 -> Indicator 4
A164: =A43 -> Indicator 5
